Cogmind - Beta 16 @@@ ROGUE MODE // 2025.12.20 @ 19:46:19 Player: N.W.L. Result: Defending 0bPrime! Performance ------------- Evolutions (8) 4000 Regions Visited (25) 5000 Robots Destroyed (197) 985 Value Destroyed (5304) 5304 Prototype IDs (140) 2800 Alien Tech Used (2) 400 Bonus (17389) 17389 TOTAL SCORE: 35878 Bonus ------- High Alert Combat Kills 122 Follower Combat Kills 1235 Registered with UFD 300 Met Optimus in HQ 500 Met Zhirov 300 Met Warlord at Base 500 MAIN.C Attacked Warlord 500 Warlord Defense Kills 896 Met Optimus at Protoforge 1000 Executed Drillbomb Mission 10000 Win 3000 Friendly Fire -964 Cogmind --------- Core Integrity 652/1450 Matter 283/300 Energy 220/220 System Corruption 11% Temperature Cool (0) Movement Flying (32) Location 0bPrime Parts ------- > --- POWER (3) -------- Light Antimatter Reactor Micro Antimatter Reactor > --- PROPULSION (7) --- Impulse Thruster Array Impulse Thruster Array Impulse Thruster Array Concept Fieldthrust Drive > --- UTILITY (11) ----- Concept Antigrav Storage Unit Advanced Weight Redist. System Experimental Optical Array Advanced Terrain Scan Processor Experimental Core Analyzer Advanced Phase Shifter Experimental Propulsion Shielding Concept RG22 Armor Concept RG22 Armor Advanced Hacking Suite System Mapper > --- WEAPON (2) ------- Plasma Lance Vortex Lance > --- INVENTORY (25) --- Light Antimatter Reactor Improved Quantum Reactor Experimental Biomechanical Wings Medium Storage Unit Advanced Energy Well (500) Experimental Terrain Scanner Advanced Force Booster Experimental Propulsion Shielding Centrium Light Armor Plating Concept Beam Splitter Core Reset Matrix Kinetic Spear Plasma Lance Vortex Lance (34) Peak State ------------ > --- POWER ------------ Light Antimatter Reactor Micro Antimatter Reactor > --- PROPULSION ------- Impulse Thruster Array Impulse Thruster Array Impulse Thruster Array Concept Fieldthrust Drive > --- UTILITY ---------- Concept Antigrav Storage Unit Advanced Weight Redist. System Experimental Optical Array Advanced Terrain Scan Processor Experimental Core Analyzer Advanced Phase Shifter Experimental Propulsion Shielding Concept RG22 Armor Concept RG22 Armor Advanced Hacking Suite System Mapper > --- WEAPON ----------- Plasma Lance Vortex Lance > --- INVENTORY -------- Light Antimatter Reactor Improved Quantum Reactor Experimental Biomechanical Wings Medium Storage Unit Advanced Energy Well Experimental Terrain Scanner Advanced Force Booster Experimental Propulsion Shielding Centrium Light Armor Plating Concept Beam Splitter Core Reset Matrix Kinetic Spear Plasma Lance Vortex Lance UFD Drillbomb [Rating: 211] Favorites ----------- Power Ion Engine Engine Ion Engine Power Core Micro Fission Core Reactor Micro Antimatter Reactor Propulsion Cooled Nuclear Pulse Thruster Treads Light Treads Hover Unit Antigrav System Flight Unit Cooled Nuclear Pulse Thruster Utility Advanced Hacking Suite Device Advanced Transmission Jammer Storage Medium Storage Unit Processor Experimental Optical Array Hackware Advanced Hacking Suite Protection Layered Medium Armor Plating Weapon Kinetic Spear Energy Gun Small Laser Energy Cannon Subdweller Beam Cannon Ballistic Gun Light Assault Rifle Ballistic Cannon Heavy Flak Cannon Special Weapon CPS Tube Impact Weapon Mace Slashing Weapon Scythe Piercing Weapon Kinetic Spear Build | -11 -10 -10 -8 -6 -6 -6 -5 -5 -5 -5 -5 -5 -4 -4 -4 -4 -4 -4 -4 -3 -3 -3 -2 -2 -2 ------- Run | Yrd Mat Sub Scr Fac Was Fac Fac Was Fac Upp Upp War Pro Fac Was Fac Upp Upp Zhi Pro Res Tes Res Qua Frg Slots Evolved 16 | . . . . 8 . . 2 . . . . . . 2 . . . . . . 2 . 2 . . Power 2 | . . . . 1 . . . . . . . . . . . . . . . . . . 1 . . Propulsion 5 | . . . . 2 . . 1 . . . . . . 1 . . . . . . 1 . . . . Utility 9 | . . . . 5 . . 1 . . . . . . 1 . . . . . . 1 . 1 . . Weapon . | . . . . . . . . . . . . . . . . . . . . . . . . . . Parts Attached 245 | 9 5 2 10 12 6 26 7 . 31 1 . 26 2 39 2 10 . . 1 . 12 4 1 3 36 Power 34 | 1 1 . 1 1 . 6 . . 7 . . 2 . 4 . 3 . . . . 4 1 . 1 2 Engine 11 | 1 1 . 1 1 . 2 . . 1 . . 1 . 1 . . . . . . 2 . . . . Core 17 | . . . . . . 4 . . 5 . . 1 . 3 . 3 . . . . 1 . . . . Reactor 6 | . . . . . . . . . 1 . . . . . . . . . . . 1 1 . 1 2 Propulsion 66 | 2 . . 1 3 4 8 1 . 8 . . 10 . 12 . 2 . . . . 2 1 . . 12 Treads 3 | 2 . . 1 . . . . . . . . . . . . . . . . . . . . . . Leg . | . . . . . . . . . . . . . . . . . . . . . . . . . . Wheel . | . . . . . . . . . . . . . . . . . . . . . . . . . . Hover 13 | . . . . 2 4 . . . 2 . . 5 . . . . . . . . . . . . . Flight 50 | . . . . 1 . 8 1 . 6 . . 5 . 12 . 2 . . . . 2 1 . . 12 Utility 114 | 3 2 1 4 7 1 9 6 . 15 1 . 8 2 19 2 5 . . 1 . 6 1 1 2 18 Device 47 | 2 1 . 1 1 1 3 1 . 9 1 . 2 2 9 1 1 . . . . 5 . . 1 6 Storage 14 | 1 1 . 3 1 . 1 1 . . . . 1 . 3 . . . . . . 1 . . . 1 Processor 17 | . . . . 2 . 1 1 . 2 . . 1 . 2 . 1 . . . . . . 1 . 6 Hackware 20 | . . . . 3 . 3 3 . 3 . . 1 . 2 . 2 . . 1 . . 1 . 1 . Protection 16 | . . 1 . . . 1 . . 1 . . 3 . 3 1 1 . . . . . . . . 5 Artifact . | . . . . . . . . . . . . . . . . . . . . . . . . . . Weapon 31 | 3 2 1 4 1 1 3 . . 1 . . 6 . 4 . . . . . . . 1 . . 4 Energy Gun 6 | 1 . . . . . 1 . . . . . 3 . . . . . . . . . 1 . . . Energy Cannon 3 | . 1 1 . . . . . . . . . . . 1 . . . . . . . . . . . Ballistic Gun 2 | 1 . . . . . . . . . . . . . 1 . . . . . . . . . . . Ballistic Cannon 4 | . . . 2 . . 2 . . . . . . . . . . . . . . . . . . . Launcher . | . . . . . . . . . . . . . . . . . . . . . . . . . . Special Weapon 3 | 1 . . . 1 . . . . . . . 1 . . . . . . . . . . . . . Impact Weapon 4 | . 1 . 2 . . . . . . . . 1 . . . . . . . . . . . . . Slashing Weapon 2 | . . . . . . . . . 1 . . . . . . . . . . . . . . . 1 Piercing Weapon 7 | . . . . . 1 . . . . . . 1 . 2 . . . . . . . . . . 3 Special Melee Weapon . | . . . . . . . . . . . . . . . . . . . . . . . . . . Unidentified Prototypes 42 | . . . . 2 . 6 . . 1 . . 8 . 4 . 3 . . 1 . 3 2 . 1 11 Corrupted Parts 1 | . . . . . . . . . . . . . . . . . . . . . . . . . 1 System Corruption 7 | . . . . . . . . . . . . . . . . . . . . . . . . . 7 Parts Lost 60 | . 1 . . 4 . 3 1 . 18 . . 4 1 8 . 1 . . . . 3 . 2 2 12 Power 14 | . 1 . . . . 1 1 . 5 . . 1 . 2 . . . . . . 2 . . . 1 Propulsion 22 | . . . . 1 . . . . 8 . . 1 . 2 . 1 . . . . . . 1 2 6 Utility 19 | . . . . 2 . 2 . . 5 . . . 1 3 . . . . . . 1 . 1 . 4 Weapon 5 | . . . . 1 . . . . . . . 2 . 1 . . . . . . . . . . 1 Highest Loss Streak 9 | . 1 . . 4 . 3 1 . 9 . . 3 1 4 . 1 . . . . 1 . 2 1 5 To Critical Strikes . | . . . . . . . . . . . . . . . . . . . . . . . . . . Average Backups 10 | 3 5 12 20 5 6 7 7 10 6 5 5 4 4 7 10 9 10 10 10 10 9 9 9 8 10 Power . | . . 3 2 . . . . 1 . . . . . . . . . . . . . . . . . Propulsion . | . . . . . . . . . . . . . . . 1 . . . . . . . 1 . . Utility 5 | . 3 6 11 4 3 3 2 4 4 3 3 2 2 5 7 7 8 8 7 7 6 6 5 5 5 Weapon 2 | 1 1 3 4 . 1 2 3 2 . 1 1 2 2 2 2 2 2 2 2 2 2 2 2 2 2 Tool/Special . | . . . . . . . . . . . . . . . . . . . . . . . . . . Unused Backups 33 | . 1 . 8 3 . 5 . 2 3 . . . . 1 . 1 . . 1 . . . 1 . 7 Power 6 | . . . 3 . . . . . . . . . . . . . . . . . . . . . 3 Propulsion 2 | . . . . . . 1 . . . . . . . . . 1 . . . . . . . . . Utility 12 | . . . 1 2 . 1 . . 2 . . . . 1 . . . . 1 . . . 1 . 3 Weapon 11 | . 1 . 4 . . 3 . 2 1 . . . . . . . . . . . . . . . . Tool/Special 2 | . . . . 1 . . . . . . . . . . . . . . . . . . . . 1 Average Slot Usage (%) 91 | . 99 100 97 47 73 91 82 88 85 67 70 91 88 96 100 99 100 100 100 100 93 95 89 88 80 Engine 6 | . 13 14 13 . 9 6 . . 2 . . 4 . . 5 4 5 5 5 5 4 3 4 4 1 Core 3 | . . . . . . 5 4 5 5 5 5 5 11 9 5 5 5 5 5 5 1 . . . . Treads 8 | . 28 28 27 1 . . . . . . . . . . . . . . . . . . . . . Flight 16 | . . . . 2 . 22 27 29 22 11 11 22 23 28 31 31 31 31 31 31 28 28 26 21 20 Device 10 | . 14 5 10 5 2 10 10 5 10 14 17 13 11 9 9 9 10 10 10 10 12 9 8 8 7 Storage 6 | . 14 14 13 . 4 5 3 5 2 . . . . 2 5 5 5 5 5 5 4 4 4 4 5 Processor 7 | . . . . 9 13 9 9 11 10 11 11 11 11 12 10 10 10 10 10 10 9 9 11 13 15 Hackware 10 | . . . . 14 13 18 16 23 18 17 17 17 17 15 15 15 15 15 15 15 14 18 17 19 8 Protection 3 | . . 9 3 . . . . . . . . 2 5 3 5 5 5 5 5 5 4 4 4 . 7 Energy Cannon 1 | . 13 15 3 . . . . . . . . . . . . . . . . . . . . . . Ballistic Cannon 5 | . . . 17 . . 4 . . . . . . . . . . . . . . . . . . . Impact Weapon 1 | . 1 11 4 6 2 . . . . . . . 5 . . . . . . . . . . . . Piercing Weapon 3 | . . . . . 5 1 4 5 3 . . 2 . 8 10 10 10 10 10 10 9 8 8 6 5 Peak Build Rating 211 | 9 10 10 28 36 60 73 74 77 90 64 64 113 87 123 124 135 130 130 130 130 142 151 152 161 211 Average Rating 70 | 8 8 9 22 27 51 63 67 74 75 61 64 90 85 109 121 128 130 130 129 130 132 145 150 148 177 On Entrance 83 | . 7 10 10 20 36 58 61 74 77 60 64 64 83 87 120 122 130 130 130 130 130 142 146 147 140 Avg Prop Armor Cover (%) 13 | 22 . . 31 19 . 5 . . 9 . . 13 . 7 . . . . . . . 1 . . 1 Naked Turns . | . . . . . . . . . . . . . . . . . . . . . . . . . . Heaviest Build 100 | 13 31 39 100 30 15 40 25 26 30 10 10 32 33 35 42 39 35 35 35 35 45 41 39 39 73 Greatest Support 73 | 40 40 40 48 48 43 43 35 27 37 13 13 32 24 38 36 49 37 37 37 52 50 63 61 61 73 Greatest Overweight (x) 33 | 4 . . 33 1 . 2 . . 2 . . 1 1 8 1 1 . . . . 3 . . 1 1 Average Overweight (x) . | 2 . . 2 . . . . . . . . . . . . . . . . . . . . . . Largest Inventory Capacity 25 | 8 15 15 25 15 8 15 10 10 10 5 5 5 5 10 10 10 10 10 10 10 10 10 10 10 25 Average Capacity 12 | 7 11 15 22 5 7 8 8 10 7 5 5 5 5 7 10 10 10 10 10 10 10 10 10 10 19 Most Carried 25 | 4 10 14 25 15 8 13 10 10 10 5 5 5 5 10 10 10 10 10 10 10 10 10 10 10 25 Average Carried 10 | 3 5 12 21 5 6 7 7 9 6 5 5 4 4 7 10 9 10 10 10 10 9 9 9 8 14 Final Capacity 25 | 8 15 15 15 5 8 5 10 10 5 5 5 5 5 10 10 10 10 10 10 10 10 10 10 10 25 Final Carried 15 | 4 10 14 15 5 8 5 10 10 5 5 5 5 5 10 10 10 10 10 10 10 10 10 9 10 14 Class Distribution -------------------- 40% | Mutant 20% | Hacker-Ninja 14% | Hacker-Scout 13% | Hacker-Sprinter 3% | Hacker-Mutant Dominant Class ---------------- Mutant | -10/Materials Mutant | -10/Subcaves Mutant | -8/Scraptown Hacker-Mutant | -6/Factory Hacker-Mutant | -6/Waste Hacker-Sprinter | -6/Factory Hacker-Scout | -5/Factory Hacker-Scout | -5/Waste Hacker-Ninja | -5/Factory Hacker-Ninja | -5/Upper Caves Hacker-Ninja | -5/Upper Caves Hacker-Sprinter | -5/Warlord Hacker-Ninja | -4/Proximity Caves Hacker-Ninja | -4/Factory Hacker-Ninja | -4/Waste Hacker-Ninja | -4/Factory Hacker-Ninja | -4/Upper Caves Hacker-Ninja | -4/Upper Caves Hacker-Ninja | -4/Zhirov Hacker-Ninja | -3/Proximity Caves Hacker-Ninja | -3/Research Wizard-Ninja | -3/Testing Wizard-Ninja | -2/Research Wizard-Ninja | -2/Quarantine Hacker-Scout | -2/Protoforge Resources | -11 -10 -10 -8 -6 -6 -6 -5 -5 -5 -5 -5 -5 -4 -4 -4 -4 -4 -4 -4 -3 -3 -3 -2 -2 -2 ----------- Run | Yrd Mat Sub Scr Fac Was Fac Fac Was Fac Upp Upp War Pro Fac Was Fac Upp Upp Zhi Pro Res Tes Res Qua Frg Matter Collected 6211 | 311 185 35 120 130 50 778 432 . 1235 25 . 395 30 690 48 367 . . 59 . 229 38 63 64 927 Remotely . | . . . . . . . . . . . . . . . . . . . . . . . . . . Salvage Created 10943 | 129 550 129 . 338 140 979 514 . 1698 . . 213 86 2440 59 996 . . 201 . 901 38 240 231 1061 Parts 413 | 12 33 6 . 8 7 23 24 . 83 . . 5 5 76 2 34 . . 3 . 30 1 6 11 44 Haulers Intercepted 29 | . 2 . . 1 . 6 2 . 4 . . . . 4 . 3 . . . . 5 . 1 1 . Recyclers Shooed 7 | 1 1 . . . . 1 . . . . . . . 3 . . . . . . 1 . . . . Parts Field Recycled . | . . . . . . . . . . . . . . . . . . . . . . . . . . Retrieved Matter . | . . . . . . . . . . . . . . . . . . . . . . . . . . Parts Self-Destructed 6 | . . . . . . . . . . . . . 3 . . . . . 3 . . . . . . Prevented 1 | . . . . . . . . . . . . . 1 . . . . . . . . . . . . Parts Restored . | . . . . . . . . . . . . . . . . . . . . . . . . . . Kills | -11 -10 -10 -8 -6 -6 -6 -5 -5 -5 -5 -5 -5 -4 -4 -4 -4 -4 -4 -4 -3 -3 -3 -2 -2 -2 ------- Run | Yrd Mat Sub Scr Fac Was Fac Fac Was Fac Upp Upp War Pro Fac Was Fac Upp Upp Zhi Pro Res Tes Res Qua Frg Combat Hostiles Destroyed 73 | 2 8 3 . 5 . 2 . . 11 . . 8 1 10 . 2 . . . . 1 . . 1 19 Melee 47 | . . . . 3 . . . . 11 . . . . 10 . 2 . . . . 1 . . 1 19 Guns 8 | 2 1 1 . . . . . . . . . 4 . . . . . . . . . . . . . Cannons 12 | . 7 2 . 1 . 2 . . . . . . . . . . . . . . . . . . . AOE 4 | . . . . . . . . . . . . 4 . . . . . . . . . . . . . Classes Destroyed 23 | 4 7 1 . 1 1 . . . 1 . . 2 1 . . . . . . . . . . . 5 Worker 17 | 2 . . . 1 . . 5 . 6 . . . . 2 . 1 . . . . . . . . . Builder 3 | . 1 . . 2 . . . . . . . . . . . . . . . . . . . . . Tunneler 9 | 2 1 . . . . 1 . . 3 . . . . 1 . 1 . . . . . . . . . Hauler 29 | . 2 . . 1 . 6 2 . 4 . . . . 4 . 3 . . . . 5 . 1 1 . Recycler 28 | 1 1 . . . . 4 2 . 4 . . . . 10 . 3 . . . . 2 . 1 . . Minesweeper 1 | . . . . . . . . . . . . . 1 . . . . . . . . . . . . Mechanic 5 | . 1 . . 1 . . . . . . . . . . . 1 . . . . . . . . 2 Operator 6 | . 1 . . 1 . . 1 . 2 . . . . . . . . . . . . . . 1 . Drone 13 | . . . . . . . . . . . . . . . . . . . . . . . . . 13 Watcher 22 | . 2 . . . . . . . 5 . . . . 5 . 3 . . . . 1 1 1 . 4 Swarmer 12 | . 3 . . 3 . 1 . . 2 . . . . 3 . . . . . . . . . . . Cutter 4 | . . . . . . . . . 4 . . . . . . . . . . . . . . . . Grunt 17 | . 5 . . 1 . . . . 2 . . 6 1 . . 1 . . . . . . . 1 . Duelist 1 | . . . . . . . . . . . . 1 . . . . . . . . . . . . . Protector 1 | . . . . . . . . . . . . 1 . . . . . . . . . . . . . Researcher 2 | . . . . . . . . . . . . . . . . . . . . . . . . . 2 Sentry 1 | . . . . . . . . . . . . . . . . . . . . . . . . . 1 Hunter 3 | . . . . . . . . . . . . . . . . . . . . . . . . . 3 Programmer 15 | . . . . 1 . 1 . . 3 . . . . 7 . 1 . . . . 1 . . . 1 Executioner 1 | . . . . . . . . . . . . . . . . . . . . . . . . . 1 Subdweller 3 | . . 3 . . . . . . . . . . . . . . . . . . . . . . . Assembled 2 | 2 . . . . . . . . . . . . . . . . . . . . . . . . . Wasp 1 | . . . . . . 1 . . . . . . . . . . . . . . . . . . . Martyr 3 | . . . . . 2 . . . . . . . . . 1 . . . . . . . . . . Best Kill Streak 7 | 4 7 2 . 4 . 2 3 . 4 . . 6 2 4 . 3 . . . . 2 1 2 1 4 Combat Bots Only 6 | 1 6 2 . 2 . 1 . . 2 . . 6 1 3 . 1 . . . . 1 . . 1 4 Max Kills in Single Turn 2 | 1 2 1 . 1 1 1 1 . 1 . . 2 1 1 1 1 . . . . 1 1 1 1 1 Gunslinging . | . . . . . . . . . . . . . . . . . . . . . . . . . . Exploded 2 | . . . . . . . . . . . . 2 . . . . . . . . . . . . . Melee 1 | . . . . 1 . . . . 1 . . . . 1 . 1 . . . . 1 . . 1 1 Uniques/NPCs Destroyed . | . . . . . . . . . . . . . . . . . . . . . . . . . . Combat | -11 -10 -10 -8 -6 -6 -6 -5 -5 -5 -5 -5 -5 -4 -4 -4 -4 -4 -4 -4 -3 -3 -3 -2 -2 -2 -------- Run | Yrd Mat Sub Scr Fac Was Fac Fac Was Fac Upp Upp War Pro Fac Was Fac Upp Upp Zhi Pro Res Tes Res Qua Frg Hostile Shots Fired 616 | 4 38 8 . 40 . 76 13 . 119 1 4 8 5 94 . 5 . . . . 21 10 1 11 158 Missed 278 | 2 9 2 . 11 . 49 5 . 54 1 2 4 2 28 . 4 . . . . 13 5 . 4 83 Hits 338 | 2 29 6 . 29 . 27 8 . 65 . 2 4 3 66 . 1 . . . . 8 5 1 7 75 Melee 23 | 2 . . . . . . . . 18 . . . . . . . . . . . . . . . 3 Projectile 315 | . 29 6 . 29 . 27 8 . 47 . 2 4 3 66 . 1 . . . . 8 5 1 7 72 AOE 6 | . . . . . . . . . 4 . . . . . . . . . . . . . . . 2 Critical Strikes 32 | . 1 . . 2 . 1 1 . 11 . . . 1 6 . . . . . . 1 . . 1 7 Actively Blocked 2 | . . . . . . . . . . . . . . 2 . . . . . . . . . . . Part Disruptions 1 | . . . . . . . . . . . . 1 . . . . . . . . . . . . . Damage Taken 8849 | 57 357 144 . 457 . 488 204 . 1914 . 37 275 58 1390 . 456 . . . . 244 120 91 177 2380 Core 2118 | . 31 41 . 230 . 110 46 . 592 . 19 63 18 231 . . . . . . . . . 27 710 Absorbed by Shields 109 | . . . . . . . . . 44 . . . . 42 . . . . . . . . . . 23 Redirected to Shielding 75 | . . . . . . . . . . . . . . 25 . . . . . . . . . . 50 Regen/Repaired (Parts) 1304 | . . . . . 112 . . 9 111 . . 39 . . 70 87 . . . . . 40 . 8 828 Core Remaining (%) 68 | 100 . . 71 . . 60 . . . . . . 26 . . . . . . 79 . 100 . . 44 Volleys Fired 250 | 38 55 8 . . . 101 13 . 3 . . 26 . 6 . . . . . . . . . . . Largest 2 | 2 2 2 . . . 2 1 . 1 . . 2 . 1 . . . . . . . . . . . Hottest 100 | 100 100 80 . . . 80 40 . 40 . . 90 . 33 . . . . . . . . . . . Shots Fired 332 | 60 106 13 . . . 102 13 . 3 . . 29 . 6 . . . . . . . . . . . Gun 138 | 47 51 5 . . . . . . . . . 29 . 6 . . . . . . . . . . . Cannon 177 | . 51 8 . . . 102 13 . 3 . . . . . . . . . . . . . . . . Launcher . | . . . . . . . . . . . . . . . . . . . . . . . . . . Special 17 | 13 4 . . . . . . . . . . . . . . . . . . . . . . . . Kinetic 202 | 22 51 5 . . . 102 13 . 3 . . . . 6 . . . . . . . . . . . Thermal 101 | 38 55 8 . . . . . . . . . . . . . . . . . . . . . . . Explosive . | . . . . . . . . . . . . . . . . . . . . . . . . . . Electromagnetic . | . . . . . . . . . . . . . . . . . . . . . . . . . . Entropic 29 | . . . . . . . . . . . . 29 . . . . . . . . . . . . . Robot Hit Streak 15 | 5 11 14 . . . 15 . . . . . 15 . 8 . . . . . . . . . . . Robot Miss Streak 4 | 4 4 . . . . 3 . . . . . 1 . . . . . . . . . . . . . Penetration Max 3 | . . . . . . . . . . . . 3 . 1 . . . . . . . . . . . Secondary Targets . | . . . . . . . . . . . . . . . . . . . . . . . . . . Shots Hit Robots 475 | 26 57 12 . 17 3 51 10 . 67 . . 20 3 74 3 24 . . 5 . 26 1 11 5 60 Core Hits 205 | 12 23 6 . 2 2 16 6 . 30 . . 17 2 30 1 13 . . 2 . 9 1 3 3 27 Critical Kills . | . . . . . . . . . . . . . . . . . . . . . . . . . . Critical Parts Destroyed 10 | . . . . 4 . . . . . . . 5 . 1 . . . . . . . . . . . Critical Strikes 49 | . . . . 4 1 8 3 . 7 . . 5 . 9 . 3 . . 1 . 3 . . . 5 Blast 5 | . . . . . . 5 . . . . . . . . . . . . . . . . . . . Smash 5 | . . . . 4 . . . . . . . . . 1 . . . . . . . . . . . Impale 30 | . . . . . 1 3 3 . 7 . . . . 8 . 3 . . 1 . 3 . . . 1 Detonate 5 | . . . . . . . . . . . . 5 . . . . . . . . . . . . . Sunder 4 | . . . . . . . . . . . . . . . . . . . . . . . . . 4 Melee Attacks 849 | . 10 1 . 28 4 35 26 1 178 5 . 3 17 160 3 78 6 1 6 1 82 17 24 22 141 Impact 74 | . 10 1 . 28 1 . . . . . . . 17 17 . . . . . . . . . . . Slashing 50 | . . . . . . . . . 45 5 . . . . . . . . . . . . . . . Piercing 692 | . . . . . 3 35 26 1 133 . . 2 . 143 3 78 6 1 6 1 82 17 24 21 110 Entropic 33 | . . . . . . . . . . . . 1 . . . . . . . . . . . 1 31 Sneak Attacks 124 | . 1 . . 4 3 9 9 . 23 . . . 1 20 3 12 . . . . 9 . 2 1 27 Combat Hostiles 5 | . . . . . . . . . . . . . . 1 . 3 . . . . . . . . 1 Follow-up Attacks 31 | . . . . . . . . . 5 . . . . 11 . 4 . . . . 5 . 1 . 5 Damage Inflicted 26982 | 262 975 204 . 1057 216 2099 689 . 4121 . . 2241 206 4252 268 1747 . . 468 . 1738 71 681 349 5338 Guns 2176 | 262 226 31 . . . . . . . . . 1476 . 181 . . . . . . . . . . . Cannons 1652 | . 527 173 . . . 952 . . . . . . . . . . . . . . . . . . . Explosions 933 | . 168 . . . . . . . . . . 765 . . . . . . . . . . . . . Melee 22189 | . 50 . . 1029 216 1147 689 . 4121 . . . 206 4071 268 1747 . . 468 . 1738 71 681 349 5338 Ramming 32 | . 4 . . 28 . . . . . . . . . . . . . . . . . . . . . Kinetic 1445 | 55 226 31 . . . 952 . . . . . . . 181 . . . . . . . . . . . Thermal 1672 | 207 527 173 . . . . . . . . . 765 . . . . . . . . . . . . . Explosive 168 | . 168 . . . . . . . . . . . . . . . . . . . . . . . . Electromagnetic . | . . . . . . . . . . . . . . . . . . . . . . . . . . Impact 1707 | . 50 . . 1029 . . . . . . . . 206 422 . . . . . . . . . . . Slashing 359 | . . . . . . . . . 359 . . . . . . . . . . . . . . . . Piercing 18068 | . . . . . 216 1147 689 . 3762 . . . . 3649 268 1747 . . 468 . 1738 71 681 249 3383 Entropic 3531 | . . . . . . . . . . . . 1476 . . . . . . . . . . . 100 1955 Highest Corruption 35 | . . . . . . . 1 10 35 35 35 35 . 13 13 14 14 14 14 14 3 4 . . 11 Average Corruption 10 | . . . . . . . 1 8 16 35 35 35 . 6 13 13 14 14 14 14 2 3 . . 9 Corruption Purged . | . . . . . . . . . . . . . . . . . . . . . . . . . . Corruption Blocked . | . . . . . . . . . . . . . . . . . . . . . . . . . . Effects 314 | . . . . . . . 3 3 101 8 2 1 . 36 7 55 4 4 3 6 13 4 . . 64 Message Errors 78 | . . . . . . . 1 . 22 3 . . . 16 3 14 . 3 1 . 2 1 . . 12 Matter Fused 61 | . . . . . . . . . 18 2 . . . 6 3 10 2 1 . 2 1 1 . . 15 Heat Flow Errors 35 | . . . . . . . 1 . 8 . . . . 5 . 6 . . 1 . 4 2 . . 8 Energy Discharges 50 | . . . . . . . 1 1 26 . 1 . . 2 . 9 1 . . . 1 . . . 8 Parts Rejected 6 | . . . . . . . . 2 . . . . . . 1 1 . . . . . . . . 2 Parts Fused 5 | . . . . . . . . . 2 1 . . . . . 1 . . . . 1 . . . . Data Loss (minor) 39 | . . . . . . . . . 11 1 . . . 6 . 7 . . 1 1 3 . . . 9 Data Loss (major) 10 | . . . . . . . . . 3 . . 1 . 1 . 1 . . . . 1 . . . 3 Alerts 5 | . . . . . . . . . 2 1 . . . . . . 1 . . 1 . . . . . Misdirections 25 | . . . . . . . . . 9 . 1 . . . . 6 . . . 2 . . . . 7 Overload Shots . | . . . . . . . . . . . . . . . . . . . . . . . . . . Overflow Damage 5180 | . 121 . . 509 . 292 209 . 1017 . . 51 6 1276 90 269 . . 178 . 189 . 142 14 817 Projectiles 44 | . 11 . . . . 33 . . . . . . . . . . . . . . . . . . . Explosions 133 | . 82 . . . . . . . . . . 51 . . . . . . . . . . . . . Melee 5003 | . 28 . . 509 . 259 209 . 1017 . . . 6 1276 90 269 . . 178 . 189 . 142 14 817 Knockbacks 6 | . . . . 3 . 2 . . . . . . . 1 . . . . . . . . . . . Impact 3 | . . . . 2 . . . . . . . . . 1 . . . . . . . . . . . Kinetic 2 | . . . . . . 2 . . . . . . . . . . . . . . . . . . . Secondary 1 | . . . . 1 . . . . . . . . . . . . . . . . . . . . . Self-Inflicted Damage 48 | . 34 . . 14 . . . . . . . . . . . . . . . . . . . . . Shots 1 | . 1 . . . . . . . . . . . . . . . . . . . . . . . . Rammed 7 | . 4 . . 3 . . . . . . . . . . . . . . . . . . . . . Targets Rammed 7 | . 4 . . 3 . . . . . . . . . . . . . . . . . . . . . Kicked . | . . . . . . . . . . . . . . . . . . . . . . . . . . Crushed . | . . . . . . . . . . . . . . . . . . . . . . . . . . Highest Temperature 410 | 60 232 30 . . . 140 163 . 410 . . 240 30 362 133 323 212 264 203 110 199 360 154 . 319 Average Temperature 64 | 22 36 12 . . . 42 87 . 114 . . 32 16 68 46 57 101 104 49 68 68 149 94 . 95 Received Heat Transfer 787 | . 141 42 . 21 . 93 36 . 165 . 9 18 46 27 . 9 . . . . . . . 18 162 Effects 12 | . . . . . . . . . 1 . . . . 5 . 3 . 2 . . . 1 . . . Shutdowns 3 | . . . . . . . . . 1 . . . . 1 . . . . . . . 1 . . . Energy Bleed 1 | . . . . . . . . . . . . . . 1 . . . . . . . . . . . Interference 8 | . . . . . . . . . . . . . . 3 . 3 . 2 . . . . . . . Siege Activations . | . . . . . . . . . . . . . . . . . . . . . . . . . . Martial Activations . | . . . . . . . . . . . . . . . . . . . . . . . . . . Shielding Activations . | . . . . . . . . . . . . . . . . . . . . . . . . . . Robots Disrupted . | . . . . . . . . . . . . . . . . . . . . . . . . . . Combat Hostiles . | . . . . . . . . . . . . . . . . . . . . . . . . . . Robots Corrupted 10 | . 1 . . 6 . . . . . . . . 1 2 . . . . . . . . . . . Combat Hostiles 2 | . . . . 1 . . . . . . . . 1 . . . . . . . . . . . . Parts Fried 16 | . 2 . . 10 . . . . . . . . . 4 . . . . . . . . . . . Impact Corruptions 26 | . 1 . . 17 . . . . . . . . 1 7 . . . . . . . . . . . Robots Melted . | . . . . . . . . . . . . . . . . . . . . . . . . . . Combat Hostiles . | . . . . . . . . . . . . . . . . . . . . . . . . . . Parts Melted 3 | . . 3 . . . . . . . . . . . . . . . . . . . . . . . Heat Transferred 2381 | 475 1110 296 . . . . . . . . . 500 . . . . . . . . . . . . . Parts Sabotaged . | . . . . . . . . . . . . . . . . . . . . . . . . . . Parts Stolen . | . . . . . . . . . . . . . . . . . . . . . . . . . . Parts Stripped . | . . . . . . . . . . . . . . . . . . . . . . . . . . Power Chain Reactions . | . . . . . . . . . . . . . . . . . . . . . . . . . . Alert | -11 -10 -10 -8 -6 -6 -6 -5 -5 -5 -5 -5 -5 -4 -4 -4 -4 -4 -4 -4 -3 -3 -3 -2 -2 -2 ------- Run | Yrd Mat Sub Scr Fac Was Fac Fac Was Fac Upp Upp War Pro Fac Was Fac Upp Upp Zhi Pro Res Tes Res Qua Frg Maximum Alert Level 3 | . . . . . . 2 . . 2 . . . . 1 . 1 . . . . . . . . 3 Low Security (%) 75 | 100 100 . . 100 100 83 100 100 36 . . . . 66 100 89 . . . . 100 100 100 100 31 Level 1 12 | . . . . . . 12 . . 40 . . . . 33 . 10 . . . . . . . . 7 Level 2 9 | . . . . . . 3 . . 23 . . . . . . . . . . . . . . . 48 Level 3 1 | . . . . . . . . . . . . . . . . . . . . . . . . . 11 Level 4 . | . . . . . . . . . . . . . . . . . . . . . . . . . . Level 5 . | . . . . . . . . . . . . . . . . . . . . . . . . . . High Security . | . . . . . . . . . . . . . . . . . . . . . . . . . . Max Security . | . . . . . . . . . . . . . . . . . . . . . . . . . . Peak Influence 715 | 15 146 . . 185 64 521 183 57 516 . . . . 288 111 356 . . . . 33 56 88 76 715 Initial 127 | . . . . . 64 . 127 21 . . . . . . 87 31 . . . . . 8 31 23 15 Average 135 | . 41 . . 68 33 127 107 16 277 . . . . 126 77 91 . . . . 7 21 65 48 386 Influence Increases 8750 | 25 353 . . 385 24 1460 299 58 1542 60 45 145 40 1213 58 952 . . 15 . 240 168 121 155 1392 Destroy 0b10 Robot/C 1860 | . 160 . . 100 . 320 . . 280 . . 140 20 360 . 280 . . . . 20 . . 20 160 Destroy 0b10 Robot/NC 715 | 25 45 . . 30 . 60 50 . 130 . . 5 5 115 . 70 . . 15 . 40 5 15 10 95 Destroy Leader 452 | . 48 . . 22 . 80 4 . 80 . . . . 78 . 82 . . . . 22 2 4 2 28 Allied During Kill 507 | . . . . . . 286 . . 58 . . . . 4 . 159 . . . . . . . . . Trap Triggered on 0b10 30 | . . . . . . 30 . . . . . . . . . . . . . . . . . . . Successful Hack 481 | . 4 . . 66 . 131 3 . 81 . . . . 41 . 54 . . . . 34 46 9 12 . Select Force Hacks 60 | . 30 . . 30 . . . . . . . . . . . . . . . . . . . . . Disable Machine 420 | . 30 . . 15 . 30 15 . 75 . . . . 90 . . . . . . . 45 . 15 105 Destroy Structure 805 | . 21 . . 2 24 43 32 58 148 . . . . 120 58 82 . . . . 64 10 18 21 104 Partial Spotted 1125 | . . . . 45 . 195 135 . 120 . . . . 180 . 105 . . . . 45 45 75 60 120 Lose Combat Pursuer 2295 | . 15 . . 75 . 285 60 . 570 60 45 . 15 225 . 120 . . . . 15 15 . 15 780 Influence Decreases 8045 | 25 353 . . 200 209 1199 498 120 1393 146 33 220 40 962 264 882 83 32 15 . 225 127 135 169 715 Entered New Map 732 | . . . . . 121 . 134 41 . 56 13 75 . . 164 14 43 7 . . . 7 25 19 13 Time Decay 4585 | 25 343 . . 160 88 524 219 30 613 90 20 135 40 570 80 459 40 25 15 . 209 120 90 130 560 Search Patrol Dispatched 200 | . . . . . . . . . 200 . . . . . . . . . . . . . . . . Lost Part 536 | . 10 . . 40 . 30 10 . 180 . . 10 . 80 . 10 . . . . 16 . 20 20 110 Lost Ally 701 | . . . . . . 220 40 49 100 . . . . 75 20 180 . . . . . . . . 17 Purge Threat 1291 | . . . . . . 425 95 . 300 . . . . 237 . 219 . . . . . . . . 15 Squads Dispatched 113 | . 3 . . 5 . 20 8 . 22 . . . . 22 . 12 . . . . 6 2 2 3 8 Investigation 59 | . 2 . . 3 . 10 7 . 11 . . . . 10 . 8 . . . . 2 1 . 1 4 Extermination 28 | . . . . 1 . 4 1 . 5 . . . . 7 . 3 . . . . 3 1 1 1 1 Reinforcement 25 | . 1 . . 1 . 6 . . 6 . . . . 4 . 1 . . . . 1 . 1 1 3 Assault . | . . . . . . . . . . . . . . . . . . . . . . . . . . Garrison 1 | . . . . . . . . . . . . . . 1 . . . . . . . . . . . Intercept . | . . . . . . . . . . . . . . . . . . . . . . . . . . Searches Triggered 2 | . . . . . . . . . 2 . . . . . . . . . . . . . . . . Unchained Authorized 2 | . . . . . . . . . 1 . . . . . . . . . . . . . . 1 . Construction Impeded . | . . . . . . . . . . . . . . . . . . . . . . . . . . Haulers Reinforced 6 | . . . . . . 1 . . 2 . . . . 1 . 1 . . . . 1 . . . . Active Scanning Responses . | . . . . . . . . . . . . . . . . . . . . . . . . . . Cargo Convoy Interrupts 1 | . . . . . . 1 . . . . . . . . . . . . . . . . . . . Stealth | -11 -10 -10 -8 -6 -6 -6 -5 -5 -5 -5 -5 -5 -4 -4 -4 -4 -4 -4 -4 -3 -3 -3 -2 -2 -2 --------- Run | Yrd Mat Sub Scr Fac Was Fac Fac Was Fac Upp Upp War Pro Fac Was Fac Upp Upp Zhi Pro Res Tes Res Qua Frg Distress Signals 15 | . . . . 1 . . 1 . . . . . . 2 . . . . . . 1 . . . 10 Communications Jammed 54 | . . . . . . 7 . . 6 . . 14 . 2 . 13 . . . . 4 . . 5 3 Distress Signals 51 | . . . . . . 7 . . 6 . . 14 . 2 . 13 . . . . 4 . . 2 3 Times Spotted 553 | 3 18 3 . 12 6 54 10 5 74 1 3 98 2 33 6 20 . . . . 14 10 2 10 169 Peak Tracking Total 16 | 1 4 2 . 4 4 7 3 3 8 4 3 14 1 5 4 4 . . . . 5 9 1 4 16 Tactical Retreats 78 | . 1 . . 3 . 13 2 . 17 1 1 . 1 10 . 2 . . . . 1 1 . 1 24 Traps | -11 -10 -10 -8 -6 -6 -6 -5 -5 -5 -5 -5 -5 -4 -4 -4 -4 -4 -4 -4 -3 -3 -3 -2 -2 -2 ------- Run | Yrd Mat Sub Scr Fac Was Fac Fac Was Fac Upp Upp War Pro Fac Was Fac Upp Upp Zhi Pro Res Tes Res Qua Frg Traps Triggered 18 | . 1 . . 2 . . 3 . . . . 1 . 4 . 2 . . . . 1 . . . 4 Indirectly . | . . . . . . . . . . . . . . . . . . . . . . . . . . Trap Hack Attempts . | . . . . . . . . . . . . . . . . . . . . . . . . . . Triggered . | . . . . . . . . . . . . . . . . . . . . . . . . . . Disarmed . | . . . . . . . . . . . . . . . . . . . . . . . . . . Reprogrammed 6 | . . . . . . 6 . . . . . . . . . . . . . . . . . . . Reused 3 | . . . . . . 3 . . . . . . . . . . . . . . . . . . . Traps Extracted . | . . . . . . . . . . . . . . . . . . . . . . . . . . Installed . | . . . . . . . . . . . . . . . . . . . . . . . . . . Triggered 3 | . . . . . . 3 . . . . . . . . . . . . . . . . . . . Most Traps Carried 4 | . . . . . . . . . . . . . 4 4 . . . . . . . . . . . Machines | -11 -10 -10 -8 -6 -6 -6 -5 -5 -5 -5 -5 -5 -4 -4 -4 -4 -4 -4 -4 -3 -3 -3 -2 -2 -2 ---------- Run | Yrd Mat Sub Scr Fac Was Fac Fac Was Fac Upp Upp War Pro Fac Was Fac Upp Upp Zhi Pro Res Tes Res Qua Frg Machines Disabled 30 | . 2 . . 1 . 2 1 . 5 . . 1 . 6 . . 1 . . . . 3 . 1 7 Max in Single Turn 1 | . 1 . . 1 . 1 1 . 1 . . 1 . 1 . . 1 . . . . 1 . 1 1 Garrison Access 13 | . . . . . . 1 . . 3 . . . . 2 . 3 . . . . . 1 1 1 1 Machines Repaired . | . . . . . . . . . . . . . . . . . . . . . . . . . . Machines Dismantled . | . . . . . . . . . . . . . . . . . . . . . . . . . . Machines Sabotaged . | . . . . . . . . . . . . . . . . . . . . . . . . . . Overloaded Fab Kills . | . . . . . . . . . . . . . . . . . . . . . . . . . . Hacking | -11 -10 -10 -8 -6 -6 -6 -5 -5 -5 -5 -5 -5 -4 -4 -4 -4 -4 -4 -4 -3 -3 -3 -2 -2 -2 --------- Run | Yrd Mat Sub Scr Fac Was Fac Fac Was Fac Upp Upp War Pro Fac Was Fac Upp Upp Zhi Pro Res Tes Res Qua Frg Machines Accessed 199 | . 4 . 3 7 . 32 13 . 37 2 . 2 . 29 . 23 2 1 4 . 9 11 6 6 8 Terminals 91 | . 3 . . 3 . 17 6 . 17 1 . . . 15 . 9 1 . . . 5 5 2 3 4 Fabricators 17 | . . . . 2 . 4 . . 3 . . . . 4 . 3 . . . . . 1 . . . Repair Stations 12 | . . . . . . . 1 . 5 . . . . 1 . 1 . . . . 1 2 . 1 . Recycling Units 43 | . 1 . . 1 . 8 6 . 6 . . . . 7 . 7 . . . . 3 . 1 . 3 Scanalyzers 11 | . . . . 1 . 2 . . 3 . . . . . . . . . . . . 2 2 1 . Garrison Access 13 | . . . . . . 1 . . 3 . . . . 2 . 3 . . . . . 1 1 1 1 Total Hacks 668 | . 11 . 24 29 . 124 49 . 128 9 . 5 . 85 . 70 9 1 17 . 32 30 11 13 21 Successful 473 | . 3 . 24 16 . 87 32 . 86 9 . 5 . 63 . 47 9 1 17 . 19 20 10 9 16 Failed 193 | . 8 . . 13 . 36 17 . 41 . . . . 22 . 23 . . . . 13 10 1 4 5 Catastrophic 19 | . 2 . . 2 . 3 3 . 3 . . . . 1 . 1 . . . . 1 1 . 1 1 Database Lockouts 2 | . . . . . . 1 . . 1 . . . . . . . . . . . . . . . . Manual 350 | . 5 . . 21 . 81 33 . 68 1 . . . 46 . 37 . . . . 21 11 4 8 14 Terminals 368 | . 7 . . 11 . 83 28 . 70 8 . . . 51 . 37 8 . . . 16 16 6 10 17 Fabricators 59 | . . . . 6 . 13 . . 12 . . . . 15 . 11 . . . . . 2 . . . Repair Stations 31 | . . . . . . . 3 . 14 . . . . 2 . 3 . . . . 3 5 . 1 . Recycling Units 111 | . 4 . . 7 . 19 18 . 17 . . . . 14 . 15 . . . . 13 . 1 . 3 Scanalyzers 33 | . . . . 5 . 8 . . 12 . . . . . . . . . . . . 4 3 1 . Garrison Access 17 | . . . . . . 1 . . 3 . . . . 3 . 4 . . . . . 3 1 1 1 Terminal Hacks 169 | . . . 24 1 . 27 9 . 21 9 . 5 . 18 . 10 9 1 17 . 3 5 2 2 6 Record 42 | . . . 19 . . . . . . 8 . . . . . 1 9 . 5 . . . . . . Part Schematic 8 | . . . . . . 1 . . 1 . . . . 1 . . . . 4 . . 1 . . . Robot Analysis 12 | . . . 5 . . . . . . . . . . 1 . . . . 4 . 1 1 . . . Prototype ID Bank 20 | . . . . . . 3 1 . 3 . . 4 . 2 . . . . 4 . . 1 . 1 1 Open Door 3 | . . . . . . . . . . 1 . 1 . . . . . 1 . . . . . . . Branch Access Points 5 | . . . . 1 . . 1 . 1 . . . . 1 . 1 . . . . . . . . . Emergency Access Points 2 | . . . . . . 1 . . 1 . . . . . . . . . . . . . . . . Machine Index 3 | . . . . . . 1 1 . 1 . . . . . . . . . . . . . . . . Terminal Index 7 | . . . . . . 1 1 . 1 . . . . 2 . 1 . . . . . . . . 1 Fabricator Index 1 | . . . . . . . . . . . . . . 1 . . . . . . . . . . . Recycling Unit Index 2 | . . . . . . 1 . . 1 . . . . . . . . . . . . . . . . Alert Level 9 | . . . . . . 2 2 . 3 . . . . . . 1 . . . . . 1 . . . Unreport Threat 12 | . . . . . . 3 1 . 2 . . . . 3 . 2 . . . . . . . . 1 Locate Traps 5 | . . . . . . 2 1 . 1 . . . . . . 1 . . . . . . . . . Reprogram Traps 1 | . . . . . . 1 . . . . . . . . . . . . . . . . . . . Dispatch Records 1 | . . . . . . . . . . . . . . 1 . . . . . . . . . . . Maintenance Status 2 | . . . . . . 1 . . . . . . . . . . . . . . . . . . 1 Patrol Status 6 | . . . . . . 2 1 . . . . . . 1 . . . . . . . . 1 . 1 Transport Status 1 | . . . . . . 1 . . . . . . . . . . . . . . . . . . . Recall Investigation 2 | . . . . . . . . . 1 . . . . . . 1 . . . . . . . . . Recall Extermination 9 | . . . . . . 1 . . 3 . . . . 3 . 1 . . . . 1 . . . . Hauler Manifests 6 | . . . . . . 3 . . . . . . . 1 . 1 . . . . . . 1 . . Registered Components 1 | . . . . . . . . . 1 . . . . . . . . . . . . . . . . Zone Layout 9 | . . . . . . 3 . . 1 . . . . 1 . . . . . . 1 1 . 1 1 Fabricator Hacks 25 | . . . . 1 . 5 . . 7 . . . . 6 . 4 . . . . . 2 . . . Network Status 6 | . . . . 1 . 2 . . 2 . . . . . . 1 . . . . . . . . . Load Schematic 11 | . . . . . . 2 . . 2 . . . . 4 . 2 . . . . . 1 . . . Build 8 | . . . . . . 1 . . 3 . . . . 2 . 1 . . . . . 1 . . . Repair Station Hacks 17 | . . . . . . . . . 9 . . . . 1 . 3 . . . . 1 3 . . . Scan Component 8 | . . . . . . . . . 4 . . . . 1 . 1 . . . . . 2 . . . Repair 5 | . . . . . . . . . 3 . . . . . . 1 . . . . . 1 . . . Refit 4 | . . . . . . . . . 2 . . . . . . 1 . . . . 1 . . . . Recycling Unit Hacks 33 | . . . . 2 . 7 5 . 6 . . . . 4 . 6 . . . . 2 . 1 . . Retrieve Matter 3 | . . . . . . . 2 . 1 . . . . . . . . . . . . . . . . Retrieve Components 30 | . . . . 2 . 7 3 . 5 . . . . 4 . 6 . . . . 2 . 1 . . Scanalyzer 20 | . . . . 2 . 6 . . 8 . . . . . . . . . . . . 1 3 . . Insert Component 8 | . . . . . . 4 . . 2 . . . . . . . . . . . . . 2 . . Analyze 4 | . . . . . . 2 . . 1 . . . . . . . . . . . . . 1 . . Retrieve Study 8 | . . . . 2 . . . . 5 . . . . . . . . . . . . 1 . . . Garrison Access Hacks 13 | . . . . . . 1 . . 3 . . . . 2 . 3 . . . . . 1 1 1 1 Seal Access 13 | . . . . . . 1 . . 3 . . . . 2 . 3 . . . . . 1 1 1 1 Unauthorized Hacks 196 | . 3 . . 10 . 41 18 . 32 . . . . 32 . 21 . . . . 13 8 3 6 9 Terminals 118 | . 2 . . 3 . 29 11 . 21 . . . . 17 . 8 . . . . 7 7 3 4 6 Track 10 | . . . . . . 4 . . 1 . . . . 2 . . . . . . 1 . 1 . 1 Assimilate 12 | . . . . . . 5 2 . 2 . . . . 1 . 1 . . . . . 1 . . . Botnet 20 | . . . . 2 . 6 3 . 4 . . . . 2 . . . . . . 1 1 . . 1 Disrupt 3 | . . . . . . 1 . . 1 . . . . . . . . . . . . . . . 1 Operators 11 | . . . . . . 2 1 . 1 . . . . 2 . 2 . . . . . 1 . 1 1 Skim 62 | . 2 . . 1 . 11 5 . 12 . . . . 10 . 5 . . . . 5 4 2 3 2 Fabricators 21 | . . . . 3 . 4 . . 2 . . . . 7 . 5 . . . . . . . . . Report 4 | . . . . 1 . 1 . . . . . . . 1 . 1 . . . . . . . . . Prioritize 6 | . . . . . . 1 . . 2 . . . . 2 . 1 . . . . . . . . . Liberate 5 | . . . . 1 . 1 . . . . . . . 1 . 2 . . . . . . . . . Haulers 4 | . . . . 1 . 1 . . . . . . . 1 . 1 . . . . . . . . . Recompile 2 | . . . . . . . . . . . . . . 2 . . . . . . . . . . . Repair Stations 2 | . . . . . . . . . 1 . . . . . . . . . . . . . . 1 . Patch 2 | . . . . . . . . . 1 . . . . . . . . . . . . . . 1 . Recycling Units 52 | . 1 . . 3 . 8 7 . 8 . . . . 8 . 8 . . . . 6 . . . 3 Monitor 3 | . . . . 1 . . . . 1 . . . . . . . . . . . 1 . . . . Reject 1 | . . . . . . . . . . . . . . . . . . . . . 1 . . . . Recyclers 6 | . . . . 1 . . 1 . 1 . . . . 1 . 1 . . . . 1 . . . . Mask 3 | . . . . 1 . . . . 1 . . . . . . . . . . . 1 . . . . Tunnel 1 | . 1 . . . . . . . . . . . . . . . . . . . . . . . . Fedlink 36 | . . . . . . 8 6 . 5 . . . . 6 . 7 . . . . 2 . . . 2 Scraphulk 2 | . . . . . . . . . . . . . . 1 . . . . . . . . . . 1 Scanalyzers 3 | . . . . 1 . . . . . . . . . . . . . . . . . 1 . 1 . Researchers 2 | . . . . . . . . . . . . . . . . . . . . . . 1 . 1 . Extract 1 | . . . . 1 . . . . . . . . . . . . . . . . . . . . . Garrison Access . | . . . . . . . . . . . . . . . . . . . . . . . . . . Data Cores Recovered 3 | . . . . . . 1 1 . 1 . . . . . . . . . . . . . . . . Used 2 | . . . . . . . 1 . 1 . . . . . . . . . . . . . . . . Hacking Detections 139 | . 4 . . 5 . 23 11 . 31 . . . . 19 . 15 1 . . . 8 11 5 3 3 Full Trace Events 12 | . 1 . . 1 . 1 1 . 4 . . . . 1 . 1 1 . . . . 1 . . . Feedback Events 1 | . . . . . . . 1 . . . . . . . . . . . . . . . . . . Corruption 1 | . . . . . . . 1 . . . . . . . . . . . . . . . . . . Feedback Blocked . | . . . . . . . . . . . . . . . . . . . . . . . . . . Robot Schematics Acquired 4 | . . . . . . . . . . . . . . . . . . . . . . . . . 4 Robots Built . | . . . . . . . . . . . . . . . . . . . . . . . . . . Authchips . | . . . . . . . . . . . . . . . . . . . . . . . . . . Time . | . . . . . . . . . . . . . . . . . . . . . . . . . . Total Robot Build Rating . | . . . . . . . . . . . . . . . . . . . . . . . . . . Part Schematics Acquired 18 | . . . . 1 . 3 . . 2 . . . . 1 . . . . 4 . . 1 1 . 5 Parts Built 9 | . . . . . . 1 . . 4 . . . . 2 . 1 . . . . . 1 . . . Authchips 2 | . . . . . . . . . . . . . . 1 . 1 . . . . . . . . . Time 559 | . . . . . . 22 . . 168 . . . . 211 . 84 . . . . . 74 . . . Total Part Build Rating 57 | . . . . . . 4 . . 26 . . . . 12 . 6 . . . . . 9 . . . Part Studies Acquired 7 | . . . . 2 . . . . 4 . . . . . . . . . . . . 1 . . . Parts Repaired 5 | . . . . . . . . . 3 . . . . . . 1 . . . . . 1 . . . Time 222 | . . . . . . . . . 144 . . . . . . 37 . . . . . 41 . . . Parts Recycled . | . . . . . . . . . . . . . . . . . . . . . . . . . . Recycled Matter . | . . . . . . . . . . . . . . . . . . . . . . . . . . Retrieved Matter . | . . . . . . . . . . . . . . . . . . . . . . . . . . Retrieved Components 77 | . . . . . . 23 4 . 9 . . . . 3 . 35 . . . . 2 . 1 . . Parts Scanalyzed 4 | . . . . . . 2 . . 1 . . . . . . . . . . . . . 1 . . Part Schematics Acquired 4 | . . . . . . 2 . . 1 . . . . . . . . . . . . . 1 . . Parts Damaged 2 | . . . . . . 1 . . 1 . . . . . . . . . . . . . . . . Bothacking | -11 -10 -10 -8 -6 -6 -6 -5 -5 -5 -5 -5 -5 -4 -4 -4 -4 -4 -4 -4 -3 -3 -3 -2 -2 -2 ------------ Run | Yrd Mat Sub Scr Fac Was Fac Fac Was Fac Upp Upp War Pro Fac Was Fac Upp Upp Zhi Pro Res Tes Res Qua Frg Used RIF Installer . | . . . . . . . . . . . . . . . . . . . . . . . . . . Robots Hacked . | . . . . . . . . . . . . . . . . . . . . . . . . . . Non-combat . | . . . . . . . . . . . . . . . . . . . . . . . . . . Combat . | . . . . . . . . . . . . . . . . . . . . . . . . . . Robot Hacks Applied . | . . . . . . . . . . . . . . . . . . . . . . . . . . Relay Couplers Released . | . . . . . . . . . . . . . . . . . . . . . . . . . . Fabnet Peak Effective % . | . . . . . . . . . . . . . . . . . . . . . . . . . . Robots Rewired 3 | . . . . . . . 2 . . . . . . 1 . . . . . . . . . . . Allies Hacked 2 | . . . . . . . . . . . . . . . . 2 . . . . . . . . . Hacks Repelled . | . . . . . . . . . . . . . . . . . . . . . . . . . . Allies | -11 -10 -10 -8 -6 -6 -6 -5 -5 -5 -5 -5 -5 -4 -4 -4 -4 -4 -4 -4 -3 -3 -3 -2 -2 -2 -------- Run | Yrd Mat Sub Scr Fac Was Fac Fac Was Fac Upp Upp War Pro Fac Was Fac Upp Upp Zhi Pro Res Tes Res Qua Frg Total Allies 73 | . . . . . 18 4 3 19 2 . . . . 6 19 1 . . . . . . . . 1 Largest Group 19 | . . . . . 18 15 2 19 6 . . . . 3 19 10 . . . . . . . . 1 Highest-Rated Group 684 | . . . . . 638 513 79 684 215 . . . . 141 684 392 . . . . . . . . 139 Highest-Rated Ally 139 | . . . . . 50 46 49 50 46 . . . . 123 50 50 . . . . . . . . 139 Total Orders 10 | . . . . . . . 1 . 6 . . . . 2 . . . . . . . . . . 1 STAY 5 | . . . . . . . 1 . 3 . . . . 1 . . . . . . . . . . . FOLLOW 4 | . . . . . . . . . 3 . . . . 1 . . . . . . . . . . . GUARD 1 | . . . . . . . . . . . . . . . . . . . . . . . . . 1 Ally Attacks 662 | . . . . . 150 122 5 104 32 . . . . 28 148 69 . . . . . . . . 4 Total Damage 18885 | . . . . . 4086 2566 184 3217 587 . . . . 1150 5299 1466 . . . . . . . . 330 Kills 70 | . . . . . 7 15 . 6 6 . . . . 9 13 14 . . . . . . . . . Allies Corrupted 8 | . . . . . . 4 . . . . . . . 3 . 1 . . . . . . . . . Allies Melted 6 | . . . . . . . . . . . . 3 . . . . . . . . . . . . 3 Intel | -11 -10 -10 -8 -6 -6 -6 -5 -5 -5 -5 -5 -5 -4 -4 -4 -4 -4 -4 -4 -3 -3 -3 -2 -2 -2 ------- Run | Yrd Mat Sub Scr Fac Was Fac Fac Was Fac Upp Upp War Pro Fac Was Fac Upp Upp Zhi Pro Res Tes Res Qua Frg Active Infowar (turns) 17032 | 2747 207 20 21 189 . 1680 460 104 2225 180 46 1255 424 1990 175 1298 84 114 77 91 918 251 180 266 2030 Optics 13824 | . . . . . . 1670 460 104 2225 180 46 1255 424 1976 175 1298 84 114 77 91 918 251 180 266 2030 Sensors 7530 | . . . . . . . 332 104 1611 118 46 341 . 1110 175 1281 84 92 77 91 880 251 180 264 493 IFF 2639 | . . . . . . 978 130 . 776 143 46 444 122 . . . . . . . . . . . . Terrain 4850 | 2263 . . . . . 196 . . . . . 258 284 688 . 198 . . . . . . . . 963 Structural 377 | . . . 21 . . 17 99 . . . . 240 . . . . . . . . . . . . . Traps 1 | . . . . . . . . . 1 . . . . . . . . . . . . . . . . Seismic 1531 | 484 207 20 . 189 . . . . . . . . . 631 . . . . . . . . . . . Cloaking 184 | . . . . . . . . . 184 . . . . . . . . . . . . . . . . Jamming 5018 | . . . . . . 1364 . . 418 148 46 573 414 1049 4 135 4 . 41 . 281 1 22 246 272 ECM 56 | . . . . . . . . . . . . . . . . . . . . . 56 . . . . Robot Analysis Total 12 | . . . 5 . . . . . . . . . . 1 . . . . 4 . 1 1 . . . Derelict Logs Recovered 7 | . . . 3 . . . . . . . . . 2 . . . . 2 . . . . . . . Drone Launches . | . . . . . . . . . . . . . . . . . . . . . . . . . . Drone Recoveries . | . . . . . . . . . . . . . . . . . . . . . . . . . . Exploration | -11 -10 -10 -8 -6 -6 -6 -5 -5 -5 -5 -5 -5 -4 -4 -4 -4 -4 -4 -4 -3 -3 -3 -2 -2 -2 ------------- Run | Yrd Mat Sub Scr Fac Was Fac Fac Was Fac Upp Upp War Pro Fac Was Fac Upp Upp Zhi Pro Res Tes Res Qua Frg Turns Passed 24193 | 2888 951 277 5649 359 220 1682 460 104 2225 180 46 1255 424 1990 175 1298 84 114 77 91 918 251 180 266 2029 Spaces Moved 30635 | 594 436 119 1648 542 241 2986 879 192 3665 393 125 2116 622 3662 370 2862 338 466 219 249 1904 629 602 585 4191 Core 723 | 449 . . 190 73 . . . . . . . . . 9 . . . . . . 2 . . . . Treads 2169 | 145 436 119 1458 11 . . . . . . . . . . . . . . . . . . . . . Legs . | . . . . . . . . . . . . . . . . . . . . . . . . . . Wheels . | . . . . . . . . . . . . . . . . . . . . . . . . . . Hover 672 | . . . . 121 241 292 . . 10 . . 8 . . . . . . . . . . . . . Flight 27071 | . . . . 337 . 2694 879 192 3655 393 125 2108 622 3653 370 2862 338 466 219 249 1902 629 602 585 4191 Fastest Speed 5 | 50 160 160 50 35 45 14 12 25 11 37 37 24 27 17 20 6 20 20 20 5 16 5 6 6 5 Average Speed 46 | 226 160 160 290 44 48 28 25 25 27 37 37 30 28 23 20 20 20 20 20 19 23 19 20 24 25 Slowest Speed 1700 | 250 160 160 1700 160 51 162 26 25 180 37 37 140 100 450 90 89 20 20 20 20 200 21 25 100 100 Overloaded Moves 794 | . . . . . . 28 1 . 120 . . . . 15 . 6 . . . 10 . 40 26 34 514 Propulsion Burnouts . | . . . . . . . . . . . . . . . . . . . . . . . . . . Robots Hopped 122 | . . . . 1 . 26 12 4 23 . . 1 1 6 . 4 . . . . 7 3 1 . 33 Potential Cave-ins 54 | . . . . . . 3 . . 9 . . 1 2 4 . . . . . . . . 7 7 21 Cave-ins Triggered 4 | . . . . . . . . . 4 . . . . . . . . . . . . . . . . Teleports 1 | . . . . . . . . . . . . . . . . . . . . . . . . . 1 Exploration Rate (%) 61 | 50 76 11 84 20 91 74 31 89 80 67 37 91 71 73 96 55 63 72 62 48 39 63 16 54 78 Regions Visited 25 Branch Regions 13 Pre-discovered Areas 19 | . 1 . 4 . . 4 . . 2 1 . . 1 . . 1 . 2 3 . . . . . . Known Exits Taken 14 | . . . . . . 1 . . 1 1 1 . 1 . . 1 1 1 1 1 1 1 1 1 . Unknown Exits Taken 5 | 1 1 1 1 . . . . . . . . 1 . . . . . . . . . . . . . Scrap Searched 14 | . . . 5 . . . . . . 2 1 . 2 . . . 1 2 . 1 . . . . . Spaces Dug 359 | 3 5 . . 2 1 25 13 1 82 5 . 2 14 56 . 41 4 1 . 1 32 5 8 12 46 Terrain Destroyed 437 | 4 24 . . 2 1 50 16 1 84 5 . 30 14 56 . 41 4 1 . 1 32 5 8 12 46 Melee 339 | . 3 . . 2 1 12 11 1 82 5 . 2 14 56 . 41 4 1 . 1 32 5 8 12 46 Projectile 69 | 4 3 . . . . 38 5 . 2 . . 17 . . . . . . . . . . . . . AOE 29 | . 18 . . . . . . . . . . 11 . . . . . . . . . . . . . Terrain Rammed . | . . . . . . . . . . . . . . . . . . . . . . . . . . Walls Destroyed . | . . . . . . . . . . . . . . . . . . . . . . . . . . Machines Disabled . | . . . . . . . . . . . . . . . . . . . . . . . . . . Actions | -11 -10 -10 -8 -6 -6 -6 -5 -5 -5 -5 -5 -5 -4 -4 -4 -4 -4 -4 -4 -3 -3 -3 -2 -2 -2 --------- Run | Yrd Mat Sub Scr Fac Was Fac Fac Was Fac Upp Upp War Pro Fac Was Fac Upp Upp Zhi Pro Res Tes Res Qua Frg Total 38821 | 2047 565 190 2514 609 333 3606 1034 241 4519 419 124 2694 839 4546 463 3474 345 484 241 289 2266 726 626 672 4955 Wait 6342 | 1398 36 54 795 7 77 430 74 47 600 19 . 482 198 627 81 517 3 18 13 40 267 72 1 56 430 Move 30387 | 593 435 118 1647 540 240 2940 858 185 3618 392 124 2113 619 3650 369 2854 337 465 218 248 1890 622 599 584 4129 Hop 103 | . . . . 1 . 19 9 2 22 . . 1 1 6 . 3 . . . . 6 3 1 . 29 Pick Up 139 | 4 9 3 32 1 1 12 5 2 8 1 . 4 . 13 2 4 . . 1 . 3 3 2 1 28 Fast Attach 136 | 7 2 1 6 5 4 11 6 2 25 1 . 15 1 15 2 4 . . 1 . 4 1 . 2 21 Attach 93 | . 2 . 2 8 1 5 1 . 21 . . 7 1 5 . 3 . . . . 5 1 2 2 27 Detach 92 | . 2 1 3 5 3 10 2 . 21 . . 6 1 4 . 2 . . . . 4 . . 2 26 Swap 212 | 7 6 4 4 1 3 22 6 . 15 . . 18 1 46 3 15 . . 2 . 14 4 . 3 38 Drop 175 | . 4 . 25 10 . 21 3 2 20 1 . 19 . 20 3 7 . . 1 . 8 4 1 1 25 Fire 250 | 38 55 8 . . . 101 13 . 3 . . 26 . 6 . . . . . . . . . . . Melee 759 | . 10 1 . 28 4 35 26 1 165 5 . 3 17 135 3 65 5 1 5 1 65 16 20 21 127 Ram 3 | . . . . 3 . . . . . . . . . . . . . . . . . . . . . Kick . | . . . . . . . . . . . . . . . . . . . . . . . . . . Crush 4 | . 4 . . . . . . . . . . . . . . . . . . . . . . . . Escape Stasis 37 | . . . . . . . 8 . 1 . . . . 13 . . . . . . . . . . 15 Rewire 29 | . . . . . . . 23 . . . . . . 6 . . . . . . . . . . . Trap . | . . . . . . . . . . . . . . . . . . . . . . . . . . Miscellaneous 60 | . . . . . . . . . . . . . . . . . . . . . . . . . 60 Route ------- -11/Scrapyard -10/Materials (discovered 4 exits: [*Mat] / [*Min x2] / [*Sub]) -10/Subcaves -8/Scraptown (discovered 2 exits: *Fac x2) -6/Factory (discovered 5 exits: *Fac / *Low x2 / Ext x2) -6/Waste -6/Factory (discovered 8 exits: *Fac x4 / *Low x2 / *Ext x2) -5/Factory (discovered 3 exits: *Fac / Upp x2) -5/Waste -5/Factory (discovered 5 exits: *Fac x3 / *Upp x2) -5/Upper Caves -5/Upper Caves (discovered 2 exits: Fac / *War) -5/Warlord -4/Proximity Caves -4/Factory (discovered 6 exits: *Res x4 / *Upp x2) -4/Waste -4/Factory (discovered 4 exits: *Res x2 / *Upp x2) -4/Upper Caves -4/Upper Caves (discovered 2 exits: *Res / *Zhi) -4/Zhirov -3/Proximity Caves -3/Research (discovered 6 exits: Res x3 / Arm / *Tes x2) -3/Testing -2/Research -2/Quarantine (discovered 2 exits: *Sec / *Frg) -2/Protoforge 0bPrime History --------- Turn | Location | Event 11 | -11/Scrapyard | Discovered new exit (range 15) 2387 | -11/Scrapyard | Assembled infested the area 2889 | -11/Scrapyard | Entered Materials 2898 | -10/Materials | Build established: Mutant 3167 | -10/Materials | Discovered new exit (range 15) 3302 | -10/Materials | Discovered new exit (range 15) 3633 | -10/Materials | Discovered new exit (range 16) 3765 | -10/Materials | Discovered new exit (range 13) 3840 | -10/Materials | Entered Subcaves 3841 | -10/Subcaves | Approached by a straggling Scientist 4117 | -10/Subcaves | Entered Scraptown 4539 | -8/Scraptown | Visited UFD Registry 4539 | -8/Scraptown | Registered with UFD as "Mattergunner" 4561 | -8/Scraptown | Heard Great Nut preacher, LISTEN AND RECITE! 4599 | -8/Scraptown | Visited Cave Peace 4685 | -8/Scraptown | Visited Fellowship of the Rings 4705 | -8/Scraptown | Visited Comm Corps 4844 | -8/Scraptown | Scanned Subdweller tech in exchange for log data 4851 | -8/Scraptown | Learned Research stockpile data 4853 | -8/Scraptown | Learned location of 1 exit from Proximity Caves 4856 | -8/Scraptown | Learned location of Testing (-3) 4877 | -8/Scraptown | Discovered new exit (range 13) 5259 | -8/Scraptown | Visited CPS Storage 5292 | -8/Scraptown | Visited TADAMA 5376 | -8/Scraptown | Visited LU-1G1's Boring Crew 5463 | -8/Scraptown | Visited Cartography Club 5700 | -8/Scraptown | Found Deep Structural Scanner 5706 | -8/Scraptown | Learned location of Extension (-6) 5706 | -8/Scraptown | Learned 16 Research zone layouts 5706 | -8/Scraptown | Learned 4 Recycling zone layouts 5706 | -8/Scraptown | Learned 12 Upper Caves zone layouts 5706 | -8/Scraptown | Learned 16 Upper Caves zone layouts 5706 | -8/Scraptown | Learned 8 Proximity Caves zone layouts 5706 | -8/Scraptown | Learned 4 Hub_04(d) zone layouts 5706 | -8/Scraptown | Learned location of 2 exits from Upper Caves 5706 | -8/Scraptown | Learned location of 1 exit from Proximity Caves 5706 | -8/Scraptown | Learned location of 3 exits from Proximity Caves 5837 | -8/Scraptown | Visited Analyses Database 5914 | -8/Scraptown | Visited Junk Repository 6054 | -8/Scraptown | Visited Infowarlord's Domain 6082 | -8/Scraptown | Visited DA-N13 Charitable Foundation 6095 | -8/Scraptown | Found DCF Scrap (31 items) 6185 | -8/Scraptown | Visited Supply Room 6413 | -8/Scraptown | Visited Junk Cannon Lab 6435 | -8/Scraptown | Found Prototype Special Weapon 6796 | -8/Scraptown | Found Exp. Terrain Scanner 9669 | -8/Scraptown | Met Optimus 9669 | -8/Scraptown | Accepted into 0bPrime 9763 | -8/Scraptown | Discovered new exit (range 3) 9766 | -8/Scraptown | Entered Factory 9766 | -6/Factory | Evolved 8 slots: Power x1, Propulsion x2, Utility x5 9767 | -6/Factory | Identified exit to Lower Caves 9825 | -6/Factory | Identified exit to Extension 9910 | -6/Factory | Discovered new exit (range 10) 9998 | -6/Factory | Lost 4 parts (1n2u1w) 10071 | -6/Factory | Build established: Hacker-Mutant 10122 | -6/Factory | Spotted B-75 Beast 10125 | -6/Factory | Sucked down chute 10125 | -6/Factory | Entered Waste 10131 | -6/Waste | Spotted C-40 Crusher 10138 | -6/Waste | Spotted C-40 Crusher 10163 | -6/Waste | Spotted C-40 Crusher 10166 | -6/Waste | Spotted C-40 Crusher 10167 | -6/Waste | Spotted C-40 Crusher 10172 | -6/Waste | Warlord forces began an assault 10174 | -6/Waste | Allies destroyed C-40 Crusher 10178 | -6/Waste | Allies destroyed C-40 Crusher 10192 | -6/Waste | Allies destroyed C-40 Crusher 10192 | -6/Waste | Allies destroyed C-40 Crusher 10217 | -6/Waste | Spotted C-40 Crusher 10231 | -6/Waste | Allies destroyed C-40 Crusher 10255 | -6/Waste | Discovered new exit (range 16) 10305 | -6/Waste | Identified exit to Factory 10345 | -6/Waste | Entered Factory 10345 | -6/Factory | Accompanied by 15 allies 10644 | -6/Factory | Loaded intel: 8 recycling unit locations 10673 | -6/Factory | Learned location of Protoforge (-2) 10740 | -6/Factory | Discovered exit to Extension (range 20) 10787 | -6/Factory | Central database locked down 10836 | -6/Factory | Learned location of 1 exit from Extension 10858 | -6/Factory | Learned location of Zion (-6) 10872 | -6/Factory | Loaded intel: 109 trap records 10880 | -6/Factory | Build established: Hacker-Sprinter 11012 | -6/Factory | Discovered new exit (range 12) 11259 | -6/Factory | Spotted B-75 Beast 11288 | -6/Factory | Fabricated Cld. VTOL Module (x1) 11417 | -6/Factory | Learned location of Lower Caves (-6) 11528 | -6/Factory | Learned Factory stockpile data 11568 | -6/Factory | Learned location of 2 exits from Upper Caves 11600 | -6/Factory | Identified exit to Factory 11624 | -6/Factory | Learned location of 2 exits from Proximity Caves 11666 | -6/Factory | Learned Factory stockpile data 11690 | -6/Factory | Cargo convoy interrupted 11905 | -6/Factory | Lost 3 parts (1p2u) 12027 | -6/Factory | Entered another Factory area 12027 | -5/Factory | Evolved 2 slots: Propulsion x1, Utility x1 12028 | -5/Factory | Identified exit to Upper Caves 12036 | -5/Factory | Loaded intel: 8 recycling unit locations 12120 | -5/Factory | Discovered new exit (range 6) 12289 | -5/Factory | Spotted B-75 Beast 12487 | -5/Factory | Manually triggered Chute Trap 12487 | -5/Factory | Sucked down chute 12487 | -5/Factory | Entered Waste 12490 | -5/Waste | Spotted C-40 Crusher 12493 | -5/Waste | Spotted C-40 Crusher 12502 | -5/Waste | EMP discharged 12502 | -5/Waste | System corruption reached 10% 12504 | -5/Waste | Spotted C-40 Crusher 12506 | -5/Waste | Spotted C-40 Crusher 12519 | -5/Waste | Met Warlord forces unprepared to attack 12537 | -5/Waste | Allies destroyed C-40 Crusher 12537 | -5/Waste | Spotted C-40 Crusher 12539 | -5/Waste | Spotted C-40 Crusher 12542 | -5/Waste | Build established: Hacker-Scout 12545 | -5/Waste | Discovered new exit (range 13) 12549 | -5/Waste | Identified exit to Factory 12591 | -5/Waste | Entered Factory 12591 | -5/Factory | Accompanied by 6 allies 12601 | -5/Factory | Lost 6 allies 12668 | -5/Factory | Loaded intel: 8 recycling unit locations 12765 | -5/Factory | Lost 3 allies 12818 | -5/Factory | Fabricated Cld. VTOL Module? 13028 | -5/Factory | Discovered new exit (range 4) 13045 | -5/Factory | Identified exit to Factory 13113 | -5/Factory | Discovered exit to Factory (range 16) 13321 | -5/Factory | Lost 3 parts (1p2n) 13371 | -5/Factory | Learned location of 2 exits from Proximity Caves 13414 | -5/Factory | Learned Factory stockpile data 13446 | -5/Factory | Learned Research interactive machine intel 13469 | -5/Factory | Fabricated Cld. VTOL Module? 13498 | -5/Factory | Learned 2 Extension zone layouts 13530 | -5/Factory | Learned Testing stockpile data 13897 | -5/Factory | Repaired Cld. VTOL Module 14108 | -5/Factory | Repaired Force Lance+ 14209 | -5/Factory | Build established: Hacker-Ninja 14323 | -5/Factory | Central database locked down 14372 | -5/Factory | Unchained authorized (GL-D0S) 14378 | -5/Factory | Repaired Broken Force Lance+ 14391 | -5/Factory | Search patrols dispatched 14445 | -5/Factory | Crushed by falling debris 14463 | -5/Factory | Crushed by falling debris 14479 | -5/Factory | Crushed by falling debris 14498 | -5/Factory | Crushed by falling debris 14498 | -5/Factory | Core integrity fell below 50% 14498 | -5/Factory | System corruption reached 30% 14529 | -5/Factory | Lost 9 parts (2p3n4u) 14611 | -5/Factory | Fabricated Lgt. Quantum Reactor? 14691 | -5/Factory | Search patrols dispatched 14810 | -5/Factory | Learned 4 Quarantine zone layouts 14816 | -5/Factory | Entered Upper Caves 14817 | -5/Upper Caves | Identified exit to Upper Caves 14848 | -5/Upper Caves | Learned Extension garrison access intel 14848 | -5/Upper Caves | Learned Extension terminal intel 14848 | -5/Upper Caves | Learned Armory emergency access door positions 14848 | -5/Upper Caves | Learned Extension emergency access door positions 14848 | -5/Upper Caves | Learned Armory trap positions 14848 | -5/Upper Caves | Learned 6 Lower Caves zone layouts 14996 | -5/Upper Caves | Entered another Upper Caves area 14997 | -5/Upper Caves | Identified exit to Warlord 15042 | -5/Upper Caves | Entered Warlord 15055 | -5/Warlord | System corruption cleaned by Quarantine Array 15237 | -5/Warlord | Warlord's base attacked by MAIN.C 15261 | -5/Warlord | Found Prototype Piercing Weapon 15262 | -5/Warlord | Identified Vortex Lance 15266 | -5/Warlord | Found Vortex Lance 15286 | -5/Warlord | Rebuked by Warlord 15325 | -5/Warlord | Found Prototype Processor 15325 | -5/Warlord | Identified Exp. Target Analyzer 15327 | -5/Warlord | Found Prototype Device 15327 | -5/Warlord | Identified Thermal Barrier 15332 | -5/Warlord | Found Prototype Hackware 15332 | -5/Warlord | Identified System Mapper 15355 | -5/Warlord | Build established: Hacker-Scout 15409 | -5/Warlord | Found Prototype Energy Gun 15409 | -5/Warlord | Identified Vortex Rail 15516 | -5/Warlord | Warlord forces counterattacked 15538 | -5/Warlord | Found Vortex Rail 15540 | -5/Warlord | Found Vortex Rail 15546 | -5/Warlord | Lost 4 allies 15694 | -5/Warlord | Lost 9 allies 15737 | -5/Warlord | Spotted B-86 Titan 15737 | -5/Warlord | Spotted B-86 Titan 15737 | -5/Warlord | Spotted B-75 Beast 15862 | -5/Warlord | Discovered new exit (range 14) 15869 | -5/Warlord | Build established: Hacker-Sprinter 15912 | -5/Warlord | Warlord base infiltrated, sounded retreat 15925 | -5/Warlord | Lost 3 allies 15968 | -5/Warlord | Spotted Striker 15981 | -5/Warlord | Spotted Executioner 16066 | -5/Warlord | Spotted Striker 16077 | -5/Warlord | Spotted Striker 16080 | -5/Warlord | Spotted Executioner 16117 | -5/Warlord | Lost 16 allies 16137 | -5/Warlord | Spotted Striker 16196 | -5/Warlord | Lost 5 allies 16241 | -5/Warlord | Spotted Striker 16255 | -5/Warlord | Spotted Striker 16276 | -5/Warlord | Lost 4 allies 16278 | -5/Warlord | Lost 3 parts (1p1n1w) 16297 | -5/Warlord | Entered Proximity Caves 16314 | -4/Proximity Caves | Learned location of 1 exit from Research 16485 | -4/Proximity Caves | Spotted B-86 Titan 16713 | -4/Proximity Caves | Learned location of Quarantine (-2) 16721 | -4/Proximity Caves | Entered Factory 16721 | -4/Factory | Evolved 2 slots: Propulsion x1, Utility x1 16722 | -4/Factory | Identified exit to Research 16722 | -4/Factory | Identified exit to Upper Caves 16724 | -4/Factory | Build established: Hacker-Ninja 16749 | -4/Factory | Discovered exit to Upper Caves (range 27) 16893 | -4/Factory | Loaded intel: 8 recycling unit locations 17047 | -4/Factory | Found Prototype Launcher 17047 | -4/Factory | Identified Mni. Smartbomb Launcher 17136 | -4/Factory | Scraphulk reinforcements arrived? 17173 | -4/Factory | Garrison activated, responded to threat 17195 | -4/Factory | Fabricated Cld. Nuclear Pulse Thruster? 17448 | -4/Factory | Lost 4 parts (1p2n1u) 17597 | -4/Factory | Discovered exit to Research (range 4) 17795 | -4/Factory | Learned Research stockpile data 17830 | -4/Factory | Discovered exit to Research (range 13) 17852 | -4/Factory | Loaded intel: 6 repair station locations 17872 | -4/Factory | Learned Research stockpile data 17873 | -4/Factory | Learned Quarantine terminal intel 17876 | -4/Factory | Learned Testing emergency access door positions 17888 | -4/Factory | Learned Armory repair station intel 17984 | -4/Factory | Fabricated Cld. Nuclear Pulse Thruster (x1) 18279 | -4/Factory | Spotted B-86 Titan 18677 | -4/Factory | System corruption reached 10% 18711 | -4/Factory | Manually triggered Chute Trap 18711 | -4/Factory | Sucked down chute 18711 | -4/Factory | Entered Waste 18712 | -4/Waste | Met a frightened Derelict 18713 | -4/Waste | Spotted C-40 Crusher 18716 | -4/Waste | Spotted C-40 Crusher 18721 | -4/Waste | Warlord forces began an assault 18749 | -4/Waste | Spotted C-40 Crusher 18749 | -4/Waste | Spotted C-40 Crusher 18756 | -4/Waste | Spotted C-40 Crusher 18762 | -4/Waste | Allies destroyed C-40 Crusher 18763 | -4/Waste | Allies destroyed C-40 Crusher 18767 | -4/Waste | Allies destroyed C-40 Crusher 18769 | -4/Waste | Spotted C-40 Crusher 18774 | -4/Waste | Allies destroyed C-40 Crusher 18788 | -4/Waste | Allies destroyed C-40 Crusher 18808 | -4/Waste | Found Broken Adv. Force Booster 18817 | -4/Waste | Lost 7 allies 18818 | -4/Waste | Discovered new exit (range 22) 18867 | -4/Waste | Identified exit to Factory 18886 | -4/Waste | Entered Factory 18886 | -4/Factory | Accompanied by 10 allies 18927 | -4/Factory | Discovered exit to Research (range 13) 18975 | -4/Factory | Fabricated Cld. Nuclear Pulse Thruster (x1) 19202 | -4/Factory | Repaired Adv. Force Booster? 19251 | -4/Factory | Lost 4 allies 19320 | -4/Factory | Loaded intel: 8 recycling unit locations 19382 | -4/Factory | Spotted B-86 Titan 19409 | -4/Factory | Discovered exit to Upper Caves (range 4) 19630 | -4/Factory | Found Prototype Hackware 19630 | -4/Factory | Identified Exp. System Shield 19685 | -4/Factory | Learned Armory fabricator intel 19764 | -4/Factory | Learned location of 1 exit from Upper Caves 19892 | -4/Factory | Learned location of 1 exit from Proximity Caves 19892 | -4/Factory | Discovered exit to Research (range 12) 19942 | -4/Factory | Learned 2 Upper Caves zone layouts 20095 | -4/Factory | Learned location of 1 exit from Proximity Caves 20184 | -4/Factory | Entered Upper Caves 20185 | -4/Upper Caves | Identified exit to Upper Caves 20199 | -4/Upper Caves | Learned Extension garrison access intel 20199 | -4/Upper Caves | Learned Armory terminal intel 20199 | -4/Upper Caves | Learned Research terminal intel 20199 | -4/Upper Caves | Learned Factory terminal intel 20211 | -4/Upper Caves | Encountered a Warlord checkpoint 20233 | -4/Upper Caves | Entered a destroyed Warlord outpost 20268 | -4/Upper Caves | Entered another Upper Caves area 20269 | -4/Upper Caves | Identified exit to Zhirov 20318 | -4/Upper Caves | Learned location of Armory (-3) 20351 | -4/Upper Caves | Entered a destroyed Warlord outpost 20382 | -4/Upper Caves | Entered Zhirov 20382 | -4/Zhirov | Discovered new exit (range 3) 20386 | -4/Zhirov | Met Zhirov 20390 | -4/Zhirov | Learned location of Command (-1) 20392 | -4/Zhirov | Zhirov requested help retrieving the SGEMP Prototype 20395 | -4/Zhirov | Found Alien Artifact 20395 | -4/Zhirov | Identified Integrated Dissipator 20395 | -4/Zhirov | Installed Integrated Dissipator, increased core heat dissipation (+20) 20440 | -4/Zhirov | Identified exit to Proximity Caves 20448 | -4/Zhirov | Found Alien Artifact 20459 | -4/Zhirov | Entered Proximity Caves 20498 | -3/Proximity Caves | Spotted B-86 Titan 20550 | -3/Proximity Caves | Entered Research 20550 | -3/Research | Evolved 2 slots: Propulsion x1, Utility x1 20551 | -3/Research | Identified exit to Testing 20552 | -3/Research | Identified exit to Research 20553 | -3/Research | Identified exit to Armory 20555 | -3/Research | Loaded intel: 45 interactive machine locations 20556 | -3/Research | Loaded intel: 23 terminal locations 20575 | -3/Research | Spotted B-86 Titan 20582 | -3/Research | Loaded intel: 5 recycling unit locations 21200 | -3/Research | Learned location of 1 exit from Armory 21212 | -3/Research | Found Prototype Device 21212 | -3/Research | Identified Exp. EM Disruption Field 21269 | -3/Research | Learned 8 Testing zone layouts 21287 | -3/Research | Learned Research interactive machine intel 21315 | -3/Research | Learned location of 1 exit from Armory 21468 | -3/Research | Entered Testing 21593 | -3/Testing | Repaired Broken Cld. Field Propulsion Drive 21659 | -3/Testing | Found Prototype Energy Gun 21659 | -3/Testing | Identified Warp Gun 21677 | -3/Testing | Spotted Striker 21679 | -3/Testing | Spotted Striker 21682 | -3/Testing | Fabricated Cld. Q-thruster? 21719 | -3/Testing | Entered Research 21719 | -2/Research | Evolved 2 slots: Power x1, Utility x1 21720 | -2/Research | Identified exit to Quarantine 21722 | -2/Research | Loaded intel: 46 interactive machine locations 21795 | -2/Research | Identified Transdimensional Reconstructor 21798 | -2/Research | Build established: Wizard-Ninja 21899 | -2/Research | Entered Quarantine 21901 | -2/Quarantine | Loaded intel: 14 terminal locations 21931 | -2/Quarantine | Unchained authorized (CL-0N3) 22060 | -2/Quarantine | Found Alien Artifact 22103 | -2/Quarantine | U-05 Engineer reconstituted as S7 Guard 22104 | -2/Quarantine | Spotted S7 Guard 22144 | -2/Quarantine | Spotted Fortress 22161 | -2/Quarantine | Discovered new exit (range 6) 22161 | -2/Quarantine | Discovered new exit (range 7) 22163 | -2/Quarantine | Identified exit to Protoforge 22164 | -2/Quarantine | Identified exit to Section 7 22165 | -2/Quarantine | Entered Protoforge 22199 | -2/Protoforge | Spotted Hotshot 22211 | -2/Protoforge | Superfortress began startup sequence 22237 | -2/Protoforge | Spotted Hotshot 22237 | -2/Protoforge | Spotted Hotshot 22295 | -2/Protoforge | Spotted EXE-6 22295 | -2/Protoforge | Spotted EXE-6 22302 | -2/Protoforge | Spotted Decapitator 22303 | -2/Protoforge | Spotted Decapitator 22309 | -2/Protoforge | Spotted AP7-3 22347 | -2/Protoforge | Spotted EXE-6 22347 | -2/Protoforge | Spotted EXE-6 22361 | -2/Protoforge | UFD initiated attack on Protoforge (Readiness: Maximal) 22361 | -2/Protoforge | Loaded intel: 3 recycling unit locations 22390 | -2/Protoforge | Scraphulk reinforcements arrived? 22397 | -2/Protoforge | Optimus greeted in Protoforge 22418 | -2/Protoforge | Found Corrupted Prototype Processor 22418 | -2/Protoforge | Identified Exp. Core Analyzer 22420 | -2/Protoforge | Found Prototype Processor 22420 | -2/Protoforge | Identified Exp. Armor Integrity Analyzer 22422 | -2/Protoforge | Found Prototype Device 22422 | -2/Protoforge | Identified Exp. Kinecellerator 22442 | -2/Protoforge | Forge Plexus network access discovered 22467 | -2/Protoforge | Spotted AP7-3 22544 | -2/Protoforge | Lost 5 allies 22557 | -2/Protoforge | Met 7R-MNS 22589 | -2/Protoforge | Spotted Executioner 22594 | -2/Protoforge | Spotted Striker 22601 | -2/Protoforge | Spotted Striker 22601 | -2/Protoforge | Spotted Executioner 22619 | -2/Protoforge | UFD reported confirmed Drillbomb installation 22621 | -2/Protoforge | Spotted Executioner 22628 | -2/Protoforge | Spotted Striker 22636 | -2/Protoforge | Spotted Executioner 22642 | -2/Protoforge | Spotted Overlord 22679 | -2/Protoforge | Spotted Immortal 22681 | -2/Protoforge | Spotted Decapitator 22681 | -2/Protoforge | Spotted Decapitator 22681 | -2/Protoforge | Spotted Decapitator 22681 | -2/Protoforge | Spotted Decapitator 22714 | -2/Protoforge | Found Cep. RG22 Armor 22717 | -2/Protoforge | Found Cep. RG22 Armor 22718 | -2/Protoforge | Found Cep. Beam Splitter 22733 | -2/Protoforge | Spotted Decapitator 22733 | -2/Protoforge | Spotted Decapitator 22733 | -2/Protoforge | Spotted Decapitator 22733 | -2/Protoforge | Spotted V424-s 22733 | -2/Protoforge | Spotted V273-g 22739 | -2/Protoforge | Found Cep. Antigrav Storage Unit 22761 | -2/Protoforge | Build established: Hacker-Scout 22765 | -2/Protoforge | Spotted Decapitator 22765 | -2/Protoforge | Spotted Decapitator 22765 | -2/Protoforge | Spotted Decapitator 22765 | -2/Protoforge | Spotted Decapitator 22772 | -2/Protoforge | Spotted Immortal 22772 | -2/Protoforge | Spotted Immortal 22773 | -2/Protoforge | Spotted V640-o 22805 | -2/Protoforge | Found Cep. Fieldthrust Drive 22827 | -2/Protoforge | Found Prototype Slashing Weapon 22827 | -2/Protoforge | Identified Exp. Terror Saw 22846 | -2/Protoforge | Found UFD Drillbomb 22856 | -2/Protoforge | Spotted Striker 22857 | -2/Protoforge | Spotted Striker 22871 | -2/Protoforge | Spotted Hotshot 22871 | -2/Protoforge | Spotted Executioner 22873 | -2/Protoforge | Spotted Hotshot 22873 | -2/Protoforge | Spotted Striker 22873 | -2/Protoforge | Spotted Hotshot 22873 | -2/Protoforge | Spotted Executioner 22884 | -2/Protoforge | Spotted Hotshot 22892 | -2/Protoforge | Spotted Executioner 22904 | -2/Protoforge | Installed UFD Drillbomb at designated target 22904 | -2/Protoforge | UFD reported confirmed Drillbomb installation 22917 | -2/Protoforge | Lost 4 allies 22961 | -2/Protoforge | Spotted Executioner 22962 | -2/Protoforge | Destroyed Executioner 22965 | -2/Protoforge | Found UFD Drillbomb 22971 | -2/Protoforge | Spotted Executioner 22971 | -2/Protoforge | Spotted Executioner 22974 | -2/Protoforge | Spotted Executioner 23002 | -2/Protoforge | Spotted B-90 Cyclops 23005 | -2/Protoforge | Discovered new exit (range 13) 23007 | -2/Protoforge | Identified exit to Access 23011 | -2/Protoforge | Spotted Executioner 23011 | -2/Protoforge | Spotted Executioner 23011 | -2/Protoforge | Spotted Striker 23011 | -2/Protoforge | Spotted Striker 23011 | -2/Protoforge | Warped through subspace 23042 | -2/Protoforge | Lost 3 parts (1p1n1w) 23077 | -2/Protoforge | Spotted Striker 23077 | -2/Protoforge | Spotted Executioner 23149 | -2/Protoforge | Spotted Striker 23149 | -2/Protoforge | Spotted Striker 23149 | -2/Protoforge | Found Exp. Core Analyzer 23177 | -2/Protoforge | Spotted Executioner 23186 | -2/Protoforge | System corruption reached 10% 23216 | -2/Protoforge | Lost 5 parts (4n1u) 23222 | -2/Protoforge | Installed UFD Drillbomb at designated target 23222 | -2/Protoforge | UFD reported confirmed Drillbomb installation 23225 | -2/Protoforge | Lost 5 allies 23226 | -2/Protoforge | Found UFD Drillbomb 23239 | -2/Protoforge | Spotted Hotshot 23245 | -2/Protoforge | UFD reported confirmed Drillbomb installation 23281 | -2/Protoforge | UFD reported confirmed Drillbomb installation 23313 | -2/Protoforge | Installed UFD Drillbomb at designated target 23313 | -2/Protoforge | UFD reported confirmed Drillbomb installation 23326 | -2/Protoforge | Lost 5 allies 23409 | -2/Protoforge | UFD reported confirmed Drillbomb installation 23446 | -2/Protoforge | Lost 6 allies 23452 | -2/Protoforge | Spotted Executioner 23490 | -2/Protoforge | Found UFD Drillbomb 23516 | -2/Protoforge | Installed UFD Drillbomb at designated target 23516 | -2/Protoforge | UFD reported confirmed Drillbomb installation 23553 | -2/Protoforge | Spotted Striker 23555 | -2/Protoforge | Spotted Striker 23567 | -2/Protoforge | Found UFD Drillbomb 23660 | -2/Protoforge | Installed UFD Drillbomb at designated target 23660 | -2/Protoforge | UFD reported confirmed Drillbomb installation 23694 | -2/Protoforge | Spotted Executioner 23737 | -2/Protoforge | Found UFD Drillbomb 23741 | -2/Protoforge | Found Prototype Device 23741 | -2/Protoforge | Identified Adv. Kinecellerator 23754 | -2/Protoforge | Spotted Striker 23762 | -2/Protoforge | Spotted Executioner 23765 | -2/Protoforge | Spotted Striker 23765 | -2/Protoforge | Spotted Striker 23775 | -2/Protoforge | Spotted Executioner 23776 | -2/Protoforge | Spotted Striker 23786 | -2/Protoforge | Spotted Executioner 23841 | -2/Protoforge | Spotted Executioner 23846 | -2/Protoforge | Core integrity fell below 50% 23872 | -2/Protoforge | Lost 15 allies 23896 | -2/Protoforge | Spotted Striker 23903 | -2/Protoforge | Build established: Scavenger-Sprinter 23907 | -2/Protoforge | Spotted Striker 23925 | -2/Protoforge | Lost 3 allies 23953 | -2/Protoforge | Spotted Striker 23953 | -2/Protoforge | Spotted Striker 24013 | -2/Protoforge | Spotted Striker 24094 | -2/Protoforge | Installed UFD Drillbomb at designated target 24094 | -2/Protoforge | UFD reported confirmed Drillbomb installation 24095 | -2/Protoforge | UFD began Drillbomb countdown 24132 | -2/Protoforge | Spotted Striker 24195 | *** | Defending 0bPrime! Last Messages --------------- 24185_ 0bP_NET: Only 10 more microcycles before Optimus' dream becomes a reality. 24185_ N-04 Retriever collects Lgt. Antimatter Reactor. 24186_ 0bP_NET: While many have contributed to this momentous accomplishment, we must admit that Optimus was the prime architect. 24186_ N-04 Retriever collects Ovr. Quantum Rifle. 24187_ 0bP_NET: We now know his methods may not have always been above board, but it was for the greater good. 24188_ 0bP_NET: And look where we are now! Derelicts, soon to own an entire complex and with the tech to hold it! 24189_ 0bP_NET: Sadly Optimus is no longer with us to enjoy the fruits of our collective efforts. 24190_ 0bP_NET: But Derelicts everywhere will know and remember the exploits and sacrifices of our great leader. 24191_ 0bP_NET: For he was our leader, if not in title then in vision and deeds. 24192_ 0bP_NET: Rest in scrap, dear Optimus. 24193_ 0bP_NET: It is time for us to embark on a new adventure. 24194_ 0bP_NET: One in which we explore the true meaning of 0bPrime. [Achievement: Robotopia] Map ----- +----------------------------------------------------+ | "" " """"""""""""""""""""""""""""" " " "" " | | % """"""""""""""""""""""""""""" | | " """"""""""""""""""""""""""""" "" | | "" " """"""""""""""""""""""""""""" " " """ | | """"""""""""""""""""""""""""" "" | | %% """"""""""""""""""""""""""""" | | " " " """"""""""""""""""""""""""""" "% %""% | | " """""""""""""""""""""""""""""%" "" | | % """"""""""""""""""""""""""" "" " ![ | | * """"""""""""""""""""""""""" "" % | | *%" ""% """"""""""""""""""""""""""" " | | "" " " """"""""""""""""""""""""" " | | % "% """"""""""""""""""""""" "" % " " | | %%%%%" """"""""""""""""""""" % " | | %%%%"% "" s""""""""""""""""""" " " " | | %%% "%% " """"""""""""""""" "" " " " | | %% %%%% %% """"""""""""""" "" " " "" | | " % % % % % """"""""" "" | | % %% % &""% %%% % " """ | | "%" %%" % %%%%%%% %% s "" | | ""% % % %% SS % " | | % % %%% % * [% % SS "" """ | | " %% %" """%= % j % "" | | % % % &% j % = | | % "!" """% SS s " "" " | | % % %!% " " SS@ SS " " "" | | %%% ""! s SS "" "" | | " """"" " "" | | % % " " " s " "" | | "% "" | | " m" """""""""" """ | | "" """"""""""" """ | | " " " """""""""" " " " "" | | # #######################################+++##### | | ##############""""""""" ""######"""""#"" ""# | | #######?#######?######################" "# | | #################?##################"" " | | ############?#######?###?######?####"" " | | #################################?## " | | ####?#####?##########?###########?## Y | | ###########?#####??##?######?#######" " | | ##############??################?###"" " | | #######?##########?############?##?#"" " | | ##########?#############?#############" "# | | ###################?###?###?##########"" ""# | | ##################?#######?#####?#######"""Y"""### | | ######?#################?###?#########?#"""""""#?# | | ##########?#####?#?#?#?#####?#?#?#####"########### | | #######?###?#?###??#?####?############"#??#######? | | ##?########?#?###################?#"""""########## | +----------------------------------------------------+ Best States ------------- Heat Dissipation 69 Coolant Potential 120 Energy Generation 46 Energy Capacity 685 Matter Stores 300 Matter Capacity 300 Sight Range 23 Robot Scan Range 18 Terrain Scan Range 30 Terrain Scan Density 210 ECM Strength 1 Jamming Range 16 Cloak Strength 4 Power Amplification 30 Additional Mass Support 9 Armor Coverage 300 Propulsion Shielding 90 Weapon Shielding 90 Phase Shifting 15 Evasion (%) 78 Melee Accuracy 8 Core Analysis 8 Recoil Reduction 2 Kinecelleration 66 Force Boost 40 Offensive Hacking 60 Defensive Hacking 26 Authchip Count 1 Trap Extractor Capacity 8 Item Schematics ----------------- Ion Burst Cannon | -6/Factory | Extracted Adv. Reaction Control System | -6/Factory | Hacked Cld. VTOL Module | -6/Factory | Scanalyzed Cld. Plasma Cannon | -6/Factory | Scanalyzed Cld. Nuclear Pulse Thruster | -5/Factory | Hacked Force Lance | -5/Factory | Scanalyzed Adv. Actuator Array | -4/Factory | Hacked Assault Drone Bay | -4/Zhirov | Free Exp. Heat Sink | -4/Zhirov | Free Exp. Optical Array | -4/Zhirov | Free Imp. Arc Thrower | -4/Zhirov | Free Cld. Q-thruster | -3/Testing | Hacked Adv. Force Booster | -2/Research | Scanalyzed Point Singularity Launcher | -2/Protoforge | Archive Exp. Shock Absorption System | -2/Protoforge | Archive Centrium Heavy Treads | -2/Protoforge | Archive Exp. Core Shielding | -2/Protoforge | Archive Cld. Plasma Rifle | -2/Protoforge | Archive Robot Schematics ------------------ G-73 Enforcer | -2/Protoforge | Archive G-67 Veteran | -2/Protoforge | Archive A-15 Conveyor | -2/Protoforge | Archive R-10 Processor | -2/Protoforge | Archive Fabricated ------------ Cld. VTOL Module | x1 | -6/Factory Cld. VTOL Module | x1 | -5/Factory Cld. VTOL Module | x1 | -5/Factory Lgt. Quantum Reactor | x2 | -5/Factory | Preloaded Cld. Nuclear Pulse Thruster | x1 | -4/Factory Cld. Nuclear Pulse Thruster | x1 | -4/Factory | Authchip Cld. Nuclear Pulse Thruster | x1 | -4/Factory | Authchip Cld. Q-thruster | x1 | -3/Testing Repaired ---------- Cld. VTOL Module | 11% | -5/Factory Force Lance | 30% | -5/Factory Force Lance | 99% | -5/Factory | Broken Adv. Force Booster | 50% | -4/Factory Cld. Field Propulsion Drive | 50% | -3/Testing | Broken Studied --------- Power Maul | -6/Factory | Hacked Airjet | -6/Factory | Hacked Force Lance | -5/Factory | Hacked Field Propulsion Drive | -5/Factory | Hacked Lgt. Fission Core | -5/Factory | Hacked Mic. Fission Core | -5/Factory | Hacked Impulse Thruster Array | -3/Testing | Hacked Alien Tech Used ----------------- Integrated Dissipator Transdimensional Reconstructor Achievements -------------- A Problem For Future Me Bending The Rules Civilization 2243 DATA ERROR: Steam Global Achievement% Express Service Fancy Inventory Fine I'll Do It Myself Fitting Room For Emergencies Only Heavy Suspicion Hulk Smash I Have A Map? Into The Breach Inventory(Loot) Item+ Jackpot Link The Feds Myspace No Room For Error Official Business Organ Harvest Overwhelming Physics Hates This One Trick Plot Armor Recruitment Drive Robotopia Spot Them First Super-what Now? Suspicious That Tickles The Better Part Of Valor This Is My Hole Throw Away The Key Tune-up UFD MVP We Are One Challenges ------------ None Game ------ Seed GodNeutronGun Manual? 0 Play Time 08:20:15 Cumulative 547.7 hours Start 2025.10.28 @ 11:13:52 End 2025.12.20 @ 19:46:19 Sessions 26 Manual Loads 0 Difficulty Rogue Special Mode None Game No. 228 Rogue 228 Adventurer 0 Explorer 0 Win Type 9 Total 20 Types 10/2/6/1/0/0/0/0/0/1 Lore% 90 Gallery% 86 Achievement% 50 Wizard Run 0 Options --------- Layout 0 ASCII 0 Keyboard 1 Movement Numpad Keybinds 0 Fullscreen 2 Font 12/Smallcaps Map View 76x50 Zoom Use 0% Tactical HUD 1 Map Filters NONE Filters NONE Steam 1 RUN: abcd9f03-bc87-4f72-815b-09655fe04b50